Cost Item Category,Cost Item Sub Category (where applicable),Type of Cost Item,Sources of Cost / Pricing Data,Format of Cost Data,Year of  Data,Update Factor,Updated Cost (2000$),Notes/Assumptions,
A. Permitting and RCRA Administrative Costs,n/a,1. RCRA Part A Permit,Estimating Costs for the Economic Benefits of RCRA Noncompliance (September 1997),"Lower Bound: $2,319",1997,1.076,"Lower Bound: $2,495",n/a,
A. Permitting and RCRA Administrative Costs,n/a,1. RCRA Part A Permit,Estimating Costs for the Economic Benefits of RCRA Noncompliance (September 1997),"Upper Bound: $5,299",1997,1.076,"Upper Bound: $5,702",n/a,
A. Permitting and RCRA Administrative Costs,n/a,1. RCRA Part A Permit,Estimating Costs for the Economic Benefits of RCRA Noncompliance (September 1997),"Typical: $3,738",1997,1.076,"Typical: $4,022",n/a,
A. Permitting and RCRA Administrative Costs,n/a,2. RCRA Part B Permit,Estimating Costs for the Economic Benefits of RCRA Noncompliance (September 1997),"General Facility Rqmts: $43,693  ",1997,1.076,"General Facility Rqmts: $47,014  ",n/a,
A. Permitting and RCRA Administrative Costs,n/a,2. RCRA Part B Permit,Estimating Costs for the Economic Benefits of RCRA Noncompliance (September 1997),"Container Rqmts: $9,371",1997,1.076,"Container Rqmts: $10,083",n/a,
A. Permitting and RCRA Administrative Costs,n/a,2. RCRA Part B Permit,Estimating Costs for the Economic Benefits of RCRA Noncompliance (September 1997),"Tank System Rqmts.: $8,780",1997,1.076,"Tank System Rqmts.: $9,447",n/a,
A. Permitting and RCRA Administrative Costs,n/a,2. RCRA Part B Permit,Estimating Costs for the Economic Benefits of RCRA Noncompliance (September 1997),"Surface Impoundment Rqmts: $18,872",1997,1.076,"Surface Impoundment Rqmts: $20,306",n/a,
A. Permitting and RCRA Administrative Costs,n/a,2. RCRA Part B Permit,Estimating Costs for the Economic Benefits of RCRA Noncompliance (September 1997),"Waste Pile Rqmts: $15,260",1997,1.076,"Waste Pile Rqmts: $16,420",n/a,
A. Permitting and RCRA Administrative Costs,n/a,2. RCRA Part B Permit,Estimating Costs for the Economic Benefits of RCRA Noncompliance (September 1997),"Land Treatment Rqmts: $14,220",1997,1.076,"Land Treatment Rqmts: $15,301",n/a,
A. Permitting and RCRA Administrative Costs,n/a,2. RCRA Part B Permit,Estimating Costs for the Economic Benefits of RCRA Noncompliance (September 1997),"Landfill Rqmts: $24,465",1997,1.076,"Landfill Rqmts: $26,324",n/a,
A. Permitting and RCRA Administrative Costs,n/a,2. RCRA Part B Permit,Estimating Costs for the Economic Benefits of RCRA Noncompliance (September 1997),"Incinerator Rqmts: $22,296",1997,1.076,"Incinerator Rqmts: $23,990",n/a,
A. Permitting and RCRA Administrative Costs,n/a,3. Recording and Record Keeping for RCRA Part 258,"Supporting Statement for Continuing EPA Information Collection Request 1745.02, Criteria for Classification for Solid Waste Disposal Facilities and Practices (RCRA Part 257) (February 1999)","State and Respondent Reporting and Recordkeeping Burden: Annual Burden:  $393,428",1999,1.025,"State and Respondent Reporting and Recordkeeping Burden: Annual Burden:  $403,264",n/a,
A. Permitting and RCRA Administrative Costs,n/a,3. Recording and Record Keeping for RCRA Part 259,"Supporting Statement for Continuing EPA Information Collection Request 1745.02, Criteria for Classification for Solid Waste Disposal Facilities and Practices (RCRA Part 257) (February 1999)","State and Respondent Reporting and Recordkeeping Burden: One-Time Burden: $17,857",1999,1.025,"State and Respondent Reporting and Recordkeeping Burden: One-Time Burden: $18,303",n/a,
A. Permitting and RCRA Administrative Costs,n/a,4. Waste Stream Notification,Application of Phase IV Land Disposal Restrictions to Newly Identified Mineral Processing Wastes (April 1998),For Facilities Recycling a Waste Stream:  One-time notification cost = $100,1998*,1.05,For Facilities Recycling a Waste Stream:  One-time notification cost = $105,"* Presumed year of cost data.  The source of cost data did not directly indicate the year the cost data is based upon.  In these cases, a year of data is assumed from the date of the source document or references within the source document.",
A. Permitting and RCRA Administrative Costs,n/a,5. Waste Analysis Plan,Application of Phase IV Land Disposal Restrictions to Newly Identified Mineral Processing Wastes (April 1998),For Facilities Disposing of a Waste:  One-time waste analysis plan cost = $935,1998*,1.05,For Facilities Disposing of a Waste:  One-time waste analysis plan cost = $982,"* Presumed year of cost data.  The source of cost data did not directly indicate the year the cost data is based upon.  In these cases, a year of data is assumed from the date of the source document or references within the source document.",
A. Permitting and RCRA Administrative Costs,n/a,5. Waste Analysis Plan,Application of Phase IV Land Disposal Restrictions to Newly Identified Mineral Processing Wastes (April 1998),For Facilities Disposing of a Waste: Annual sampling cost = $470,1998*,2.05,For Facilities Disposing of a Waste: Annual sampling cost = $494,"* Presumed year of cost data.  The source of cost data did not directly indicate the year the cost data is based upon.  In these cases, a year of data is assumed from the date of the source document or references within the source document.",
A. Permitting and RCRA Administrative Costs,n/a,6. OSHA Training,Estimating Costs for the Economic Benefits of RCRA Noncompliance (September 1997),"Initial Training Costs  24 TSD and On-The-Job Training: $19,140",1997,1.076,"Initial Training Costs  24 TSD and On-The-Job Training: $20,595",n/a,
A. Permitting and RCRA Administrative Costs,n/a,6. OSHA Training,Estimating Costs for the Economic Benefits of RCRA Noncompliance (September 1997),"Annual Training Costs - 8 Hour Annual:  $4,650",1997,1.076,"Annual Training Costs - 8 Hour Annual:  $5,003",n/a,
A. Permitting and RCRA Administrative Costs,n/a,7. Manifests,Cost and Economic Impact Analysis of Listing Hazardous Wastes from the Organic Dye and Pigment Industries (Nov. 1994),"Annual Part 262 Costs (Complete manifests for approx. 4 to 6 wastes, packaging and labeling of hazardous waste for shipment, annual biennial report filing): $800/year",1994,1.175,"Annual Part 262 Costs (Complete manifests for approx. 4 to 6 wastes, packaging and labeling of hazardous waste for shipment, annual biennial report filing): $940/year",n/a,
A. Permitting and RCRA Administrative Costs,n/a,8. Environmental Audit,Estimating Costs for the Economic Benefits of RCRA Noncompliance (September 1997),"Environmental Audit Costs: Initial - $13,946",1997,1.076,"Environmental Audit Costs: Initial - $15,006",n/a,
A. Permitting and RCRA Administrative Costs,n/a,8. Environmental Audit,Estimating Costs for the Economic Benefits of RCRA Noncompliance (September 1997),"Environmental Audit Costs: On-Going - $8,910",1997,1.076,"Environmental Audit Costs: On-Going - $9,587",n/a,
A. Permitting and RCRA Administrative Costs,n/a,8. Environmental Audit,Estimating Costs for the Economic Benefits of RCRA Noncompliance (September 1997),"Implementation Plan Costs: TSD - $23,867",1997,1.076,"Implementation Plan Costs: TSD - $25,681",n/a,
A. Permitting and RCRA Administrative Costs,n/a,8. Environmental Audit,Estimating Costs for the Economic Benefits of RCRA Noncompliance (September 1997),"Implementation Plan Costs: Generator - $9,111",1997,1.076,"Implementation Plan Costs: Generator - $9,803",n/a,
A. Permitting and RCRA Administrative Costs,n/a,9. Corporate Guarantee,Estimating Costs for the Economic Benefits of RCRA Noncompliance (September 1997),First Year:  $181,1997,1.076,First Year:  $195,n/a,
A. Permitting and RCRA Administrative Costs,n/a,9. Corporate Guarantee,Estimating Costs for the Economic Benefits of RCRA Noncompliance (September 1997),Subsequent Years (Annual Updated Information):  $84,1997,1.076,Subsequent Years (Annual Updated Information):  $90,n/a,
A. Permitting and RCRA Administrative Costs,n/a,10. Financial Assurance,Estimating Costs for the Economic Benefits of RCRA Noncompliance (September 1997),Select Financial Assurance Mechanism (1st Year): $499,1997,1.076,Select Financial Assurance Mechanism (1st Year): $537,n/a,
A. Permitting and RCRA Administrative Costs,n/a,10. Financial Assurance,Estimating Costs for the Economic Benefits of RCRA Noncompliance (September 1997),Est. Financial Test (1st Year):   $975,1997,1.076,"Est. Financial Test (1st Year):   $1,049",n/a,
A. Permitting and RCRA Administrative Costs,n/a,10. Financial Assurance,Estimating Costs for the Economic Benefits of RCRA Noncompliance (September 1997),Est. Financial Test (subsequent years):  $732,1997,1.076,Est. Financial Test (subsequent years):  $788,n/a,
A. Permitting and RCRA Administrative Costs,n/a,11. Letters of Credit,Estimating Costs for the Economic Benefits of RCRA Noncompliance (September 1997),"First Year:  $920 + Approximately 1.5% of assured costs (0.5 to 2%, depending on Firm�s credit) + obtain site-specific collateral estimate from appropriate financial institution.",1997,1.076,"First Year:  $990 + Approximately 1.5% of assured costs (0.5 to 2%, depending on Firm�s credit) + obtain site-specific collateral estimate from appropriate financial institution.",n/a,
A. Permitting and RCRA Administrative Costs,n/a,11. Letters of Credit,Estimating Costs for the Economic Benefits of RCRA Noncompliance (September 1997),"Subsequent Years:  Approximately 1.5% of assured costs (0.5 to 2%, depending on Firm�s credit)",1997,1.076,"Subsequent Years:  Approximately 1.5% of assured costs (0.5 to 2%, depending on Firm�s credit)",n/a,
A. Permitting and RCRA Administrative Costs,n/a,12. Surety Bond,Estimating Costs for the Economic Benefits of RCRA Noncompliance (September 1997),"First Year: $756 + approximately 1.5% of assured costs (0.5 to 3%, depending on firm�s credit) + obtain site-specific collateral estimate from appropriate financial institution.",1997,1.076,"First Year: $813 + approximately 1.5% of assured costs (0.5 to 3%, depending on firm�s credit) + obtain site-specific collateral estimate from appropriate financial institution.",n/a,
A. Permitting and RCRA Administrative Costs,n/a,12. Surety Bond,Estimating Costs for the Economic Benefits of RCRA Noncompliance (September 1997),"Subsequent Years:  Approximately 1.5% of assured costs (0.5 to 3%, depending on firm�s credit)",1997,1.076,"Subsequent Years:  Approximately 1.5% of assured costs (0.5 to 3%, depending on firm�s credit)",n/a,
A. Permitting and RCRA Administrative Costs,n/a,13. Trust Fund,Estimating Costs for the Economic Benefits of RCRA Noncompliance (September 1997),First Year: $851 + approximately 0.5% of assured costs + total assured costs divided by number of years in pay-in period + 50% of assured costs multiplied by trust fund rate of return and marginal tax rate (State and Federal),1997,1.076,First Year: $916 + approximately 0.5% of assured costs + total assured costs divided by number of years in pay-in period + 50% of assured costs multiplied by trust fund rate of return and marginal tax rate (State and Federal),n/a,
A. Permitting and RCRA Administrative Costs,n/a,13. Trust Fund,Estimating Costs for the Economic Benefits of RCRA Noncompliance (September 1997),Subsequent Years:  Approximately 0.5% of assured costs + total assured costs divided by number of years in pay-in period + 50% of assured costs multiplied by trust fund rate of return and marginal tax rate (State and Federal),1997,1.076,Subsequent Years:  Approximately 0.5% of assured costs + total assured costs divided by number of years in pay-in period + 50% of assured costs multiplied by trust fund rate of return and marginal tax rate (State and Federal),n/a,
A. Permitting and RCRA Administrative Costs,n/a,14. Environmental Damage Liability Insurance,Revised Estimation of Baseline Costs for Hazardous Waste Combustors for Final MACT Rule (August 1998),"$150,000 ",1998*,1.05,"$150,000 ","(for minimum coverage required by RCRA, not subject to inflation)
* Presumed year of cost data.  The source of cost data did not directly indicate the year the cost data is based upon.  In these cases, a year of data is assumed from the date of the source document or references within the source document.",
A. Permitting and RCRA Administrative Costs,n/a,15. Insurance,Estimating Costs for the Economic Benefits of RCRA Noncompliance (September 1997),"First Year:  $756 (labor) + $1,846 administrative fee + Total Assured Costs Divided by Estimated Facility Life + obtain site-specific collateral estimate from appropriate financial institution. ",1997,1.076,"First Year:  $813 (labor) + $1,986 administrative fee + Total Assured Costs Divided by Estimated Facility Life + obtain site-specific collateral estimate from appropriate financial institution. ",n/a,
A. Permitting and RCRA Administrative Costs,n/a,15. Insurance,Estimating Costs for the Economic Benefits of RCRA Noncompliance (September 1997),"Subsequent Years:  $1,846 administrative fee +  Total Assured Costs Divided by Estimated Facility Life",1997,1.076,"Subsequent Years:  $1,986 administrative fee +  Total Assured Costs Divided by Estimated Facility Life",n/a,
A. Permitting and RCRA Administrative Costs,n/a,16. Third Party Liability Coverage,Estimating Costs for the Economic Benefits of RCRA Noncompliance (September 1997),Select Liability Coverage Mechanism - $499,1997,1.076,Select Liability Coverage Mechanism - $537,First Year:,
A. Permitting and RCRA Administrative Costs,n/a,16. Third Party Liability Coverage,Estimating Costs for the Economic Benefits of RCRA Noncompliance (September 1997),Financial Test (First Year) -$975,1997,1.076,"Financial Test (First Year) -$1,049",First Year:,
A. Permitting and RCRA Administrative Costs,n/a,16. Third Party Liability Coverage,Estimating Costs for the Economic Benefits of RCRA Noncompliance (September 1997),Corporate Guarantee (First Year) - $181,1997,1.076,Corporate Guarantee (First Year) - $195,First Year:,
A. Permitting and RCRA Administrative Costs,n/a,16. Third Party Liability Coverage,Estimating Costs for the Economic Benefits of RCRA Noncompliance (September 1997),Letter of Credit (First Year) - $697 + Approximately 1.5% of liability coverage (0.5 to 2% depending on firm�s credit) + obtain site-specific collateral estimate from appropriate financial institution.,1997,1.076,Letter of Credit (First Year) - $750 + Approximately 1.5% of liability coverage (0.5 to 2% depending on firm�s credit) + obtain site-specific collateral estimate from appropriate financial institution.,First Year,
A. Permitting and RCRA Administrative Costs,n/a,16. Third Party Liability Coverage,Estimating Costs for the Economic Benefits of RCRA Noncompliance (September 1997),Surety Bond (First Year) - $718 + Approximately 1.5% of liability coverage (0.5 to 3% depending on firm�s credit) + obtain site-specific collateral estimate from appropriate financial institution.,1997,1.076,Surety Bond (First Year) - $773 + Approximately 1.5% of liability coverage (0.5 to 3% depending on firm�s credit) + obtain site-specific collateral estimate from appropriate financial institution.,First Year,
A. Permitting and RCRA Administrative Costs,n/a,16. Third Party Liability Coverage,Estimating Costs for the Economic Benefits of RCRA Noncompliance (September 1997),Trust Fund (First Year) - $745 + Approximately 1% of liability coverage,1997,1.076,Trust Fund (First Year) - $802 + Approximately 1% of liability coverage,First Year,
A. Permitting and RCRA Administrative Costs,n/a,16. Third Party Liability Coverage,Estimating Costs for the Economic Benefits of RCRA Noncompliance (September 1997),Maintain Insurance (First Year) - $697 + Liability coverage + approximately 1% of liability coverage + liability coverage multiplied by Trust Fund rate of return and marginal tax rule (State and Federal),1997,1.076,Maintain Insurance (First Year) - $750 + Liability coverage + approximately 1% of liability coverage + liability coverage multiplied by Trust Fund rate of return and marginal tax rule (State and Federal),First Year,
A. Permitting and RCRA Administrative Costs,n/a,16. Third Party Liability Coverage,Estimating Costs for the Economic Benefits of RCRA Noncompliance (September 1997),Financial Test (subsequent years) - $669,1997,1.076,Financial Test (subsequent years) - $720,Subsequent Years,
A. Permitting and RCRA Administrative Costs,n/a,16. Third Party Liability Coverage,Estimating Costs for the Economic Benefits of RCRA Noncompliance (September 1997),Corporate Guarantee (subsequent years) - $21,1997,1.076,Corporate Guarantee (subsequent years) - $23,Subsequent Years,
A. Permitting and RCRA Administrative Costs,n/a,16. Third Party Liability Coverage,Estimating Costs for the Economic Benefits of RCRA Noncompliance (September 1997),Letter of Credit (subsequent years) - Approximately 1.5% of liability coverage (0.5 to 2% depending on firm�s credit),1997,1.076,Letter of Credit (subsequent years) - Approximately 1.5% of liability coverage (0.5 to 2% depending on firm�s credit),Subsequent Years,
A. Permitting and RCRA Administrative Costs,n/a,16. Third Party Liability Coverage,Estimating Costs for the Economic Benefits of RCRA Noncompliance (September 1997),Surety Bond (subsequent years) - Approximately 1.5% of liability coverage (0.5 to 3% depending on firm�s credit),1997,1.076,Surety Bond (subsequent years) - Approximately 1.5% of liability coverage (0.5 to 3% depending on firm�s credit),Subsequent Years,
A. Permitting and RCRA Administrative Costs,n/a,16. Third Party Liability Coverage,Estimating Costs for the Economic Benefits of RCRA Noncompliance (September 1997),Trust Fund (subsequent years) - Approximately 1% of liability coverage,1997,1.076,Trust Fund (subsequent years) - Approximately 1% of liability coverage,Subsequent Years,
A. Permitting and RCRA Administrative Costs,n/a,16. Third Party Liability Coverage,Estimating Costs for the Economic Benefits of RCRA Noncompliance (September 1997),Maintain Insurance (subsequent years) - Approximately 1% of liability coverage + liability coverage multiplied by Trust Fund rate of return and marginal tax rule (State and Federal),1997,1.076,Maintain Insurance (subsequent years) - Approximately 1% of liability coverage + liability coverage multiplied by Trust Fund rate of return and marginal tax rule (State and Federal),Subsequent Years,
A. Permitting and RCRA Administrative Costs,n/a,17. Compliance Testing/Incinerator Trial Burn,Revised Estimation of Baseline Costs for Hazardous Waste Combustors for Final MACT Rule (August 1998),"$300,000 every 5 years",1998*,1.05,"$315,000 every 5 years","* Presumed year of cost data.  The source of cost data did not directly indicate the year the cost data is based upon.  In these cases, a year of data is assumed from the date of the source document or references within the source document.",
A. Permitting and RCRA Administrative Costs,n/a,18. Flue Gas Emission Testing/Annual Monitoring,Regulatory Impact Assessment for Proposed Hazardous Waste Combustion MACT Standards Draft (November 1995),Lowest Cost - Baseline Continuous Emission Monitoring (CEM) System for CO and HC:,1995,1.138,Lowest Cost - Baseline Continuous Emission Monitoring (CEM) System for CO and HC:,n/a,
A. Permitting and RCRA Administrative Costs,n/a,18. Flue Gas Emission Testing/Annual Monitoring,Regulatory Impact Assessment for Proposed Hazardous Waste Combustion MACT Standards Draft (November 1995),"Sm. Cement Kiln: $77,500/yr",1995,1.138,"Sm. Cement Kiln: $88,200/yr",n/a,
A. Permitting and RCRA Administrative Costs,n/a,18. Flue Gas Emission Testing/Annual Monitoring,Regulatory Impact Assessment for Proposed Hazardous Waste Combustion MACT Standards Draft (November 1995),"Lg. Cement Kiln: $80,500/yr",1995,1.138,"Lg. Cement Kiln: $91,600/yr",n/a,
A. Permitting and RCRA Administrative Costs,n/a,18. Flue Gas Emission Testing/Annual Monitoring,Regulatory Impact Assessment for Proposed Hazardous Waste Combustion MACT Standards Draft (November 1995),"Lightweight Aggregate Kilns: $84,900/yr",1995,1.138,"Lightweight Aggregate Kilns: $96,600/yr",n/a,
A. Permitting and RCRA Administrative Costs,n/a,18. Flue Gas Emission Testing/Annual Monitoring,Regulatory Impact Assessment for Proposed Hazardous Waste Combustion MACT Standards Draft (November 1995),"Sm. Incinerator: $80,400/yr",1995,1.138,"Sm. Incinerator: $91,500/yr",n/a,
A. Permitting and RCRA Administrative Costs,n/a,18. Flue Gas Emission Testing/Annual Monitoring,Regulatory Impact Assessment for Proposed Hazardous Waste Combustion MACT Standards Draft (November 1995),"Med. Incinerator: $81,500/yr",1995,1.138,"Med. Incinerator: $92,700/yr",n/a,
A. Permitting and RCRA Administrative Costs,n/a,18. Flue Gas Emission Testing/Annual Monitoring,Regulatory Impact Assessment for Proposed Hazardous Waste Combustion MACT Standards Draft (November 1995),"Lg. Incinerator: $84,200/yr",1995,1.138,"Lg. Incinerator: $95,800/yr",n/a,
A. Permitting and RCRA Administrative Costs,n/a,18. Flue Gas Emission Testing/Annual Monitoring,Regulatory Impact Assessment for Proposed Hazardous Waste Combustion MACT Standards Draft (November 1995),"Medium Cost - CEM System for CO, HC, PM and Hg:",1995,1.138,"Medium Cost - CEM System for CO, HC, PM and Hg:",n/a,
A. Permitting and RCRA Administrative Costs,n/a,18. Flue Gas Emission Testing/Annual Monitoring,Regulatory Impact Assessment for Proposed Hazardous Waste Combustion MACT Standards Draft (November 1995),"Sm. Cement Kiln:  $125,500/yr",1995,1.138,"Sm. Cement Kiln:  $142,800/yr",n/a,
A. Permitting and RCRA Administrative Costs,n/a,18. Flue Gas Emission Testing/Annual Monitoring,Regulatory Impact Assessment for Proposed Hazardous Waste Combustion MACT Standards Draft (November 1995),"Lg. Cement Kiln: $128,400/yr",1995,1.138,"Lg. Cement Kiln: $146,100/yr",n/a,
A. Permitting and RCRA Administrative Costs,n/a,18. Flue Gas Emission Testing/Annual Monitoring,Regulatory Impact Assessment for Proposed Hazardous Waste Combustion MACT Standards Draft (November 1995),"Lightweight Aggregate Kilns: $132,900/yr",1995,1.138,"Lightweight Aggregate Kilns: $151,200/yr",n/a,
A. Permitting and RCRA Administrative Costs,n/a,18. Flue Gas Emission Testing/Annual Monitoring,Regulatory Impact Assessment for Proposed Hazardous Waste Combustion MACT Standards Draft (November 1995),"Sm. Incinerator: $127,000/yr",1995,1.138,"Sm. Incinerator: $144,500/yr",n/a,
A. Permitting and RCRA Administrative Costs,n/a,18. Flue Gas Emission Testing/Annual Monitoring,Regulatory Impact Assessment for Proposed Hazardous Waste Combustion MACT Standards Draft (November 1995),"Med. Incinerator: $128,500/yr",1995,1.138,"Med. Incinerator: $146,200/yr",n/a,
A. Permitting and RCRA Administrative Costs,n/a,18. Flue Gas Emission Testing/Annual Monitoring,Regulatory Impact Assessment for Proposed Hazardous Waste Combustion MACT Standards Draft (November 1995),"Lg. Incinerator:  $131,700/yr",1995,1.138,"Lg. Incinerator:  $149,900/yr",n/a,
A. Permitting and RCRA Administrative Costs,n/a,18. Flue Gas Emission Testing/Annual Monitoring,Regulatory Impact Assessment for Proposed Hazardous Waste Combustion MACT Standards Draft (November 1995),"Highest Cost -  Full CEM System for CO, HC, PM, HCl, Cl2, PICs and Hg:",1995,1.138,"Highest Cost -  Full CEM System for CO, HC, PM, HCl, Cl2, PICs and Hg:",n/a,
A. Permitting and RCRA Administrative Costs,n/a,18. Flue Gas Emission Testing/Annual Monitoring,Regulatory Impact Assessment for Proposed Hazardous Waste Combustion MACT Standards Draft (November 1995),"Sm. Cement Kiln: $187,500/yr",1995,1.138,"Sm. Cement Kiln: $213,400/yr",n/a,
A. Permitting and RCRA Administrative Costs,n/a,18. Flue Gas Emission Testing/Annual Monitoring,Regulatory Impact Assessment for Proposed Hazardous Waste Combustion MACT Standards Draft (November 1995),"Lg. Cement Kiln: $128,400/yr",1995,1.138,"Lg. Cement Kiln: $216,700/yr",n/a,
A. Permitting and RCRA Administrative Costs,n/a,18. Flue Gas Emission Testing/Annual Monitoring,Regulatory Impact Assessment for Proposed Hazardous Waste Combustion MACT Standards Draft (November 1995),"Lightweight Aggregate Kilns: $192,700/yr",1995,1.138,"Lightweight Aggregate Kilns: $219,300/yr",n/a,
A. Permitting and RCRA Administrative Costs,n/a,18. Flue Gas Emission Testing/Annual Monitoring,Regulatory Impact Assessment for Proposed Hazardous Waste Combustion MACT Standards Draft (November 1995),"Sm. Incinerator: $187,300/yr",1995,1.138,"Sm. Incinerator: $213,100/yr",n/a,
A. Permitting and RCRA Administrative Costs,n/a,18. Flue Gas Emission Testing/Annual Monitoring,Regulatory Impact Assessment for Proposed Hazardous Waste Combustion MACT Standards Draft (November 1995),"Med. Incinerator: $188,800/yr",1995,1.138,"Med. Incinerator: $214,800/yr",n/a,
A. Permitting and RCRA Administrative Costs,n/a,18. Flue Gas Emission Testing/Annual Monitoring,Regulatory Impact Assessment for Proposed Hazardous Waste Combustion MACT Standards Draft (November 1995),"Lg. Incinerator: $192,000/yr",1995,1.138,"Lg. Incinerator: $218,500/yr",n/a,
Cost Item Category,Cost Item Sub Category (where applicable),Type of Cost Item,Sources of Cost / Pricing Data,Format of Cost Data,Year of  Data,Update Factor,Updated Cost (2000$),Notes/Assumptions,
B. Waste Pre-Treatment,1.  Stabilization,1.1. On-Site Stabilization,"Memo: Cement and Trisodium Phosphate Stabilization Cost Functions, ICF Consulting, September 15, 1997. ","$48 to $153/mt based on a waste quantity range of 900 to 300,000 metric tons per year, respectively. ","1985, updated to1995",1.138,"$55 to $174/mt based on a waste quantity range of 900 to 300,000 metric tons per year, respectively.","www.gearsinc.com
 
www.nttc.edu",
B. Waste Pre-Treatment,1.  Stabilization,1.2. Off-Site Stabilization,Hazardous Waste Resource Center - January 2000 Incinerator and Landfill Cost Data.  www.etc.org/costsurvey3.cfm  ,Bulk waste: $87/ton ,1999,1.025,Bulk waste: $89/ton ,n/a,
B. Waste Pre-Treatment,1.  Stabilization,1.2. Off-Site Stabilization,Hazardous Waste Resource Center - January 2000 Incinerator and Landfill Cost Data.  www.etc.org/costsurvey3.cfm  ,Drummed Waste:  $38/drum,1999,1.025,Drummed Waste:  $39/drum,n/a,
B. Waste Pre-Treatment,1.  Stabilization,1.2. Off-Site Stabilization,Hazardous Waste Resource Center - January 2000 Incinerator and Landfill Cost Data.  www.etc.org/costsurvey3.cfm  ,Soil: $84/ton,1999,1.025,Soil: $86/ton,n/a,
Cost Item Category,Cost Item Sub Category (where applicable),Type of Cost Item,Sources of Cost / Pricing Data,Format of Cost Data,Year of  Data,Update Factor,Updated Cost (2000$),Notes/Assumptions,
B. Waste Pre-Treatment,2.  Other Waste Pre-Treatment,2.1. Dewatering /Filtration (Centrifuge),"
Memo: Documentation for Phase IV LDR Cost Equations. July 1997  

No source of cost data identified for plate and frame filter press or vacuum drum filter press operations.  ","$ = 143,244 + 689 (gpd)0.5
2,000 < gpd < 250,000",1995,1.138,"$ = 163,048 + 785 (gpd)0.5 2,000 < gpd < 250,000","Capital
(See Appendix B2.1 for more detail)",
B. Waste Pre-Treatment,2.  Other Waste Pre-Treatment,2.1. Dewatering /Filtration (Centrifuge),"
Memo: Documentation for Phase IV LDR Cost Equations. July 1997  

No source of cost data identified for plate and frame filter press or vacuum drum filter press operations.  ","$ = 297,045 + 0.65 (gpd) 
250,000 < gpd < 5,200,000",1995,1.138,"$ = 397,978 + 0.75 (gpd) 
250,000 < gpd < 5,200,000","Capital
(See Appendix B2.1 for more detail)",
B. Waste Pre-Treatment,2.  Other Waste Pre-Treatment,2.1. Dewatering /Filtration (Centrifuge),"
Memo: Documentation for Phase IV LDR Cost Equations. July 1997  

No source of cost data identified for plate and frame filter press or vacuum drum filter press operations.  ","$ = 18,560 + 330 (gpd)0.5 
2,000 < gpd < 250,000",1995,1.138,"$ = 21,120 + 375 (gpd)0.5  
2,000 < gpd < 250,000","O&M
(See Appendix B2.1 for more detail)",
B. Waste Pre-Treatment,2.  Other Waste Pre-Treatment,2.1. Dewatering /Filtration (Centrifuge),"
Memo: Documentation for Phase IV LDR Cost Equations. July 1997  

No source of cost data identified for plate and frame filter press or vacuum drum filter press operations.  ","$ = 76,360 + 0.46 (gpd) 
250,000 < gpd < 5,200,000",1995,1.138,"$ = 87,315 + 0.52 (gpd) 
250,000 < gpd < 5,200,000","O&M
(See Appendix B2.1 for more detail)",
B. Waste Pre-Treatment,2.  Other Waste Pre-Treatment,2.2. Vitrification,Economic Assessment of the Revised LDR Treatment Standards for Spent Aluminum Potliner (K088) (March 2000),$300/ton,1999,1.025,$308/ton,n/a,
B. Waste Pre-Treatment,2.  Other Waste Pre-Treatment,2.3. Crushing,Economic Assessment of the Revised LDR Treatment Standards for Spent Aluminum Potliner (K088) (March 2000),$/ton = 100 * (unit capacity in tons per year)-0.4 + 54 * (unit capacity in tons per year)-0.1,1999,1.025,$/ton = 103 * (unit capacity in tons per year)-0.4 + 55 * (unit capacity in tons per year)-0.1,Annualized cost based on a 10 year operating life assuming a 7% interest rate.,
B. Waste Pre-Treatment,2.  Other Waste Pre-Treatment,2.4. Milling,Economic Assessment of the Revised LDR Treatment Standards for Spent Aluminum Potliner (K088) (March 2000),$/ton = 180 * (unit capacity in tons per year)-0.4 + 86 * (unit capacity in tons per year)-0.1,1999,1.025,$/ton = 185 * (unit capacity in tons per year)-0.4 + 88 * (unit capacity in tons per year)-0.1,Annualized cost based on a 10 year operating life assuming a 7% interest rate.,
Cost Item Category,Cost Item Sub Category (where applicable),Type of Cost Item,Sources of Cost / Pricing Data,Format of Cost Data,Year of  Data,Update Factor,Updated Cost (2000$),Notes/Assumptions,
C. Solid/Sludge Disposal,1. Non-Hazardous Waste Landfill (Subtitle D),"1.1 Industrial Waste, Off-Site","Remediation Market Report, March 2000 and 1999 Environmental Cost Handling Options and Solutions (ECHOS) Environmental Remediation Cost Data",Petroleum-contaminated soil: $30.10/ton,2000,1.000,Petroleum-contaminated soil: $30.10/ton,n/a,
C. Solid/Sludge Disposal,1. Non-Hazardous Waste Landfill (Subtitle D),"1.1 Industrial Waste, Off-Site","Remediation Market Report, March 2000 and 1999 Environmental Cost Handling Options and Solutions (ECHOS) Environmental Remediation Cost Data",Solid bulk waste: $64.67/ton,1999,1.025,Solid bulk waste: $66.29/ton,n/a,
C. Solid/Sludge Disposal,1. Non-Hazardous Waste Landfill (Subtitle D),"1.2 Industrial Waste, On-Site","Memo: Hazardous Waste Identification Rule for Process Wastes: Waste Management Cost Data (Sept. 27, 1996)","Unlined With Daily Cover: 3,000 tons/yr: $51.66/ton",1995,1.138,"Unlined With Daily Cover: 3,000 tons/yr: $58.79/ton","Note: Annualized cost based on a 20 year operating life assuming a 7% interest rate.  See reference if you wish to add leachate collection system, site access controls, run-on/run-off controls, dust suppression measures, or groundwater and surface water monitoring.",
C. Solid/Sludge Disposal,1. Non-Hazardous Waste Landfill (Subtitle D),"1.2 Industrial Waste, On-Site","Memo: Hazardous Waste Identification Rule for Process Wastes: Waste Management Cost Data (Sept. 27, 1996)","Unlined With Daily Cover: 30,000 tons/yr: $12.76/ton",1995,1.138,"Unlined With Daily Cover: 30,000 tons/yr: $14.52/ton","Note: Annualized cost based on a 20 year operating life assuming a 7% interest rate.  See reference if you wish to add leachate collection system, site access controls, run-on/run-off controls, dust suppression measures, or groundwater and surface water monitoring.",
C. Solid/Sludge Disposal,1. Non-Hazardous Waste Landfill (Subtitle D),"1.2 Industrial Waste, On-Site","Memo: Hazardous Waste Identification Rule for Process Wastes: Waste Management Cost Data (Sept. 27, 1996)","Unlined With Daily Cover: 300,000 tons/yr: $3.22/ton",1995,1.138,"Unlined With Daily Cover: 300,000 tons/yr: $3.66/ton","Note: Annualized cost based on a 20 year operating life assuming a 7% interest rate.  See reference if you wish to add leachate collection system, site access controls, run-on/run-off controls, dust suppression measures, or groundwater and surface water monitoring.",
C. Solid/Sludge Disposal,1. Non-Hazardous Waste Landfill (Subtitle D),"1.2 Industrial Waste, On-Site","Memo: Hazardous Waste Identification Rule for Process Wastes: Waste Management Cost Data (Sept. 27, 1996)","Unlined With Daily Cover: 1,500,000 tons/yr: $1.69/ton",1995,1.138,"Unlined With Daily Cover: 1,500,000 tons/yr: $1.92/ton","Note: Annualized cost based on a 20 year operating life assuming a 7% interest rate.  See reference if you wish to add leachate collection system, site access controls, run-on/run-off controls, dust suppression measures, or groundwater and surface water monitoring.",
C. Solid/Sludge Disposal,1. Non-Hazardous Waste Landfill (Subtitle D),"1.2 Industrial Waste, On-Site","Memo: Hazardous Waste Identification Rule for Process Wastes: Waste Management Cost Data (Sept. 27, 1996)","Unlined With Daily Cover: 2,400,000 tons/yr: $1.34/ton",1995,1.138,"Unlined With Daily Cover: 2,400,000 tons/yr: $1.52/ton","Note: Annualized cost based on a 20 year operating life assuming a 7% interest rate.  See reference if you wish to add leachate collection system, site access controls, run-on/run-off controls, dust suppression measures, or groundwater and surface water monitoring.",
C. Solid/Sludge Disposal,1. Non-Hazardous Waste Landfill (Subtitle D),"1.2 Industrial Waste, On-Site","Memo: Hazardous Waste Identification Rule for Process Wastes: Waste Management Cost Data (Sept. 27, 1996)","Unlined Without Daily Cover: 3,000 tons/yr: $50.74/ton",1995,1.138,"Unlined Without Daily Cover: 3,000 tons/yr: $57.74/ton","Note: Annualized cost based on a 20 year operating life assuming a 7% interest rate.  See reference if you wish to add leachate collection system, site access controls, run-on/run-off controls, dust suppression measures, or groundwater and surface water monitoring.",
C. Solid/Sludge Disposal,1. Non-Hazardous Waste Landfill (Subtitle D),"1.2 Industrial Waste, On-Site","Memo: Hazardous Waste Identification Rule for Process Wastes: Waste Management Cost Data (Sept. 27, 1996)","Unlined Without Daily Cover: 30,000 tons/yr: $10.33/ton",1995,1.138,"Unlined Without Daily Cover: 30,000 tons/yr: $11.76/ton","Note: Annualized cost based on a 20 year operating life assuming a 7% interest rate.  See reference if you wish to add leachate collection system, site access controls, run-on/run-off controls, dust suppression measures, or groundwater and surface water monitoring.",
C. Solid/Sludge Disposal,1. Non-Hazardous Waste Landfill (Subtitle D),"1.2 Industrial Waste, On-Site","Memo: Hazardous Waste Identification Rule for Process Wastes: Waste Management Cost Data (Sept. 27, 1996)","Unlined Without Daily Cover: 300,000 tons/yr: $2.67/ton",1995,1.138,"Unlined Without Daily Cover: 300,000 tons/yr: $3.04/ton","Note: Annualized cost based on a 20 year operating life assuming a 7% interest rate.  See reference if you wish to add leachate collection system, site access controls, run-on/run-off controls, dust suppression measures, or groundwater and surface water monitoring.",
C. Solid/Sludge Disposal,1. Non-Hazardous Waste Landfill (Subtitle D),"1.2 Industrial Waste, On-Site","Memo: Hazardous Waste Identification Rule for Process Wastes: Waste Management Cost Data (Sept. 27, 1996)","Unlined Without Daily Cover: 1,500,000 tons/yr: $1.45/ton",1995,1.138,"Unlined Without Daily Cover: 1,500,000 tons/yr: $1.65/ton","Note: Annualized cost based on a 20 year operating life assuming a 7% interest rate.  See reference if you wish to add leachate collection system, site access controls, run-on/run-off controls, dust suppression measures, or groundwater and surface water monitoring.",
C. Solid/Sludge Disposal,1. Non-Hazardous Waste Landfill (Subtitle D),"1.2 Industrial Waste, On-Site","Memo: Hazardous Waste Identification Rule for Process Wastes: Waste Management Cost Data (Sept. 27, 1996)","Unlined Without Daily Cover: 2,400,000 tons/yr: $1.12/ton",1995,1.138,"Unlined Without Daily Cover: 2,400,000 tons/yr: $1.27/ton","Note: Annualized cost based on a 20 year operating life assuming a 7% interest rate.  See reference if you wish to add leachate collection system, site access controls, run-on/run-off controls, dust suppression measures, or groundwater and surface water monitoring.",
C. Solid/Sludge Disposal,1. Non-Hazardous Waste Landfill (Subtitle D),"1.2 Industrial Waste, On-Site","Memo: Hazardous Waste Identification Rule for Process Wastes: Waste Management Cost Data (Sept. 27, 1996)","Clay-lined with Clay Final Cap With Daily Cover: 3,000 tons/yr: $100.49/ton",1995,1.138,"Clay-lined with Clay Final Cap With Daily Cover: 3,000 tons/yr: $114.36/ton","Note: Annualized cost based on a 20 year operating life assuming a 7% interest rate.  See reference if you wish to add leachate collection system, site access controls, run-on/run-off controls, dust suppression measures, or groundwater and surface water monitoring.",
C. Solid/Sludge Disposal,1. Non-Hazardous Waste Landfill (Subtitle D),"1.2 Industrial Waste, On-Site","Memo: Hazardous Waste Identification Rule for Process Wastes: Waste Management Cost Data (Sept. 27, 1996)","Clay-lined with Clay Final Cap With Daily Cover: 30,000 tons/yr: $37.93/ton",1995,1.138,"Clay-lined with Clay Final Cap With Daily Cover: 30,000 tons/yr: $43.16/ton","Note: Annualized cost based on a 20 year operating life assuming a 7% interest rate.  See reference if you wish to add leachate collection system, site access controls, run-on/run-off controls, dust suppression measures, or groundwater and surface water monitoring.",
C. Solid/Sludge Disposal,1. Non-Hazardous Waste Landfill (Subtitle D),"1.2 Industrial Waste, On-Site","Memo: Hazardous Waste Identification Rule for Process Wastes: Waste Management Cost Data (Sept. 27, 1996)","Clay-lined with Clay Final Cap With Daily Cover: 300,000 tons/yr: $15.18/ton",1995,1.138,"Clay-lined with Clay Final Cap With Daily Cover: 300,000 tons/yr: $17.27/ton","Note: Annualized cost based on a 20 year operating life assuming a 7% interest rate.  See reference if you wish to add leachate collection system, site access controls, run-on/run-off controls, dust suppression measures, or groundwater and surface water monitoring.",
C. Solid/Sludge Disposal,1. Non-Hazardous Waste Landfill (Subtitle D),"1.2 Industrial Waste, On-Site","Memo: Hazardous Waste Identification Rule for Process Wastes: Waste Management Cost Data (Sept. 27, 1996)","Clay-lined with Clay Final Cap With Daily Cover: 1,500,000 tons/yr: $8.90/ton",1995,1.138,"Clay-lined with Clay Final Cap With Daily Cover: 1,500,000 tons/yr: $10.13/ton","Note: Annualized cost based on a 20 year operating life assuming a 7% interest rate.  See reference if you wish to add leachate collection system, site access controls, run-on/run-off controls, dust suppression measures, or groundwater and surface water monitoring.",
C. Solid/Sludge Disposal,1. Non-Hazardous Waste Landfill (Subtitle D),"1.2 Industrial Waste, On-Site","Memo: Hazardous Waste Identification Rule for Process Wastes: Waste Management Cost Data (Sept. 27, 1996)","Clay-lined with Clay Final Cap With Daily Cover: 2,400,000 tons/yr: $7.57/ton",1995,1.138,"Clay-lined with Clay Final Cap With Daily Cover: 2,400,000 tons/yr: $8.61/ton","Note: Annualized cost based on a 20 year operating life assuming a 7% interest rate.  See reference if you wish to add leachate collection system, site access controls, run-on/run-off controls, dust suppression measures, or groundwater and surface water monitoring.",
C. Solid/Sludge Disposal,1. Non-Hazardous Waste Landfill (Subtitle D),"1.2 Industrial Waste, On-Site","Memo: Hazardous Waste Identification Rule for Process Wastes: Waste Management Cost Data (Sept. 27, 1996)","Clay-lined with Clay Final Cap Without Daily Cover: 3,000 tons/yr: $81.92/ton",1995,1.138,"Clay-lined with Clay Final Cap Without Daily Cover: 3,000 tons/yr: $93.22/ton","Note: Annualized cost based on a 20 year operating life assuming a 7% interest rate.  See reference if you wish to add leachate collection system, site access controls, run-on/run-off controls, dust suppression measures, or groundwater and surface water monitoring.",
C. Solid/Sludge Disposal,1. Non-Hazardous Waste Landfill (Subtitle D),"1.2 Industrial Waste, On-Site","Memo: Hazardous Waste Identification Rule for Process Wastes: Waste Management Cost Data (Sept. 27, 1996)","Clay-lined with Clay Final Cap Without Daily Cover: 30,000 tons/yr: $28.35/ton",1995,1.138,"Clay-lined with Clay Final Cap Without Daily Cover: 30,000 tons/yr: $32.26/ton","Note: Annualized cost based on a 20 year operating life assuming a 7% interest rate.  See reference if you wish to add leachate collection system, site access controls, run-on/run-off controls, dust suppression measures, or groundwater and surface water monitoring.",
C. Solid/Sludge Disposal,1. Non-Hazardous Waste Landfill (Subtitle D),"1.2 Industrial Waste, On-Site","Memo: Hazardous Waste Identification Rule for Process Wastes: Waste Management Cost Data (Sept. 27, 1996)","Clay-lined with Clay Final Cap Without Daily Cover: 300,000 tons/yr: $11.73/ton",1995,1.138,"Clay-lined with Clay Final Cap Without Daily Cover: 300,000 tons/yr: $13.35/ton","Note: Annualized cost based on a 20 year operating life assuming a 7% interest rate.  See reference if you wish to add leachate collection system, site access controls, run-on/run-off controls, dust suppression measures, or groundwater and surface water monitoring.",
C. Solid/Sludge Disposal,1. Non-Hazardous Waste Landfill (Subtitle D),"1.2 Industrial Waste, On-Site","Memo: Hazardous Waste Identification Rule for Process Wastes: Waste Management Cost Data (Sept. 27, 1996)","Clay-lined with Clay Final Cap Without Daily Cover: 1,500,000 tons/yr: $7.00/ton",1995,1.138,"Clay-lined with Clay Final Cap Without Daily Cover: 1,500,000 tons/yr: $7.97/ton","Note: Annualized cost based on a 20 year operating life assuming a 7% interest rate.  See reference if you wish to add leachate collection system, site access controls, run-on/run-off controls, dust suppression measures, or groundwater and surface water monitoring.",
C. Solid/Sludge Disposal,1. Non-Hazardous Waste Landfill (Subtitle D),"1.2 Industrial Waste, On-Site","Memo: Hazardous Waste Identification Rule for Process Wastes: Waste Management Cost Data (Sept. 27, 1996)","Clay-lined with Clay Final Cap Without Daily Cover: 2,400,000 tons/yr: $5.93/ton",1995,1.138,"Clay-lined with Clay Final Cap Without Daily Cover: 2,400,000 tons/yr: $6.75/ton","Note: Annualized cost based on a 20 year operating life assuming a 7% interest rate.  See reference if you wish to add leachate collection system, site access controls, run-on/run-off controls, dust suppression measures, or groundwater and surface water monitoring.",
C. Solid/Sludge Disposal,1. Non-Hazardous Waste Landfill (Subtitle D),"1.2 Industrial Waste, On-Site","Memo: Hazardous Waste Identification Rule for Process Wastes: Waste Management Cost Data (Sept. 27, 1996)","Synthetic-lined with Synthetic Final Cap With Daily Cover: 3,000 tons/yr: $67.32/ton",1995,1.138,"Synthetic-lined with Synthetic Final Cap With Daily Cover: 3,000 tons/yr: $76.61/ton","Note: Annualized cost based on a 20 year operating life assuming a 7% interest rate.  See reference if you wish to add leachate collection system, site access controls, run-on/run-off controls, dust suppression measures, or groundwater and surface water monitoring.",
C. Solid/Sludge Disposal,1. Non-Hazardous Waste Landfill (Subtitle D),"1.2 Industrial Waste, On-Site","Memo: Hazardous Waste Identification Rule for Process Wastes: Waste Management Cost Data (Sept. 27, 1996)","Synthetic-lined with Synthetic Final Cap With Daily Cover: 30,000 tons/yr: $12.49/ton",1995,1.138,"Synthetic-lined with Synthetic Final Cap With Daily Cover: 30,000 tons/yr: $14.21/ton","Note: Annualized cost based on a 20 year operating life assuming a 7% interest rate.  See reference if you wish to add leachate collection system, site access controls, run-on/run-off controls, dust suppression measures, or groundwater and surface water monitoring.",
C. Solid/Sludge Disposal,1. Non-Hazardous Waste Landfill (Subtitle D),"1.2 Industrial Waste, On-Site","Memo: Hazardous Waste Identification Rule for Process Wastes: Waste Management Cost Data (Sept. 27, 1996)","Synthetic-lined with Synthetic Final Cap With Daily Cover: 300,000 tons/yr: $7.73/ton",1995,1.138,"Synthetic-lined with Synthetic Final Cap With Daily Cover: 300,000 tons/yr: $8.80/ton","Note: Annualized cost based on a 20 year operating life assuming a 7% interest rate.  See reference if you wish to add leachate collection system, site access controls, run-on/run-off controls, dust suppression measures, or groundwater and surface water monitoring.",
C. Solid/Sludge Disposal,1. Non-Hazardous Waste Landfill (Subtitle D),"1.2 Industrial Waste, On-Site","Memo: Hazardous Waste Identification Rule for Process Wastes: Waste Management Cost Data (Sept. 27, 1996)","Synthetic-lined with Synthetic Final Cap With Daily Cover: 1,500,000 tons/yr: $4.53/ton",1995,1.138,"Synthetic-lined with Synthetic Final Cap With Daily Cover: 1,500,000 tons/yr: $5.16/ton","Note: Annualized cost based on a 20 year operating life assuming a 7% interest rate.  See reference if you wish to add leachate collection system, site access controls, run-on/run-off controls, dust suppression measures, or groundwater and surface water monitoring.",
C. Solid/Sludge Disposal,1. Non-Hazardous Waste Landfill (Subtitle D),"1.2 Industrial Waste, On-Site","Memo: Hazardous Waste Identification Rule for Process Wastes: Waste Management Cost Data (Sept. 27, 1996)","Synthetic-lined with Synthetic Final Cap With Daily Cover: 2,400,000 tons/yr: $3.84/ton",1995,1.138,"Synthetic-lined with Synthetic Final Cap With Daily Cover: 2,400,000 tons/yr: $4.37/ton","Note: Annualized cost based on a 20 year operating life assuming a 7% interest rate.  See reference if you wish to add leachate collection system, site access controls, run-on/run-off controls, dust suppression measures, or groundwater and surface water monitoring.",
C. Solid/Sludge Disposal,1. Non-Hazardous Waste Landfill (Subtitle D),"1.2 Industrial Waste, On-Site","Memo: Hazardous Waste Identification Rule for Process Wastes: Waste Management Cost Data (Sept. 27, 1996)","Synthetic-lined with Synthetic Final Cap Without Daily Cover: 3,000 tons/yr: $61.45/ton",1995,1.138,"Synthetic-lined with Synthetic Final Cap Without Daily Cover: 3,000 tons/yr: $69.93/ton","Note: Annualized cost based on a 20 year operating life assuming a 7% interest rate.  See reference if you wish to add leachate collection system, site access controls, run-on/run-off controls, dust suppression measures, or groundwater and surface water monitoring.",
C. Solid/Sludge Disposal,1. Non-Hazardous Waste Landfill (Subtitle D),"1.2 Industrial Waste, On-Site","Memo: Hazardous Waste Identification Rule for Process Wastes: Waste Management Cost Data (Sept. 27, 1996)","Synthetic-lined with Synthetic Final Cap Without Daily Cover: 30,000 tons/yr: $15.60/ton",1995,1.138,"Synthetic-lined with Synthetic Final Cap Without Daily Cover: 30,000 tons/yr: $17.75/ton","Note: Annualized cost based on a 20 year operating life assuming a 7% interest rate.  See reference if you wish to add leachate collection system, site access controls, run-on/run-off controls, dust suppression measures, or groundwater and surface water monitoring.",
C. Solid/Sludge Disposal,1. Non-Hazardous Waste Landfill (Subtitle D),"1.2 Industrial Waste, On-Site","Memo: Hazardous Waste Identification Rule for Process Wastes: Waste Management Cost Data (Sept. 27, 1996)","Synthetic-lined with Synthetic Final Cap Without Daily Cover: 300,000 tons/yr: $5.61/ton",1995,1.138,"Synthetic-lined with Synthetic Final Cap Without Daily Cover: 300,000 tons/yr: $6.38/ton","Note: Annualized cost based on a 20 year operating life assuming a 7% interest rate.  See reference if you wish to add leachate collection system, site access controls, run-on/run-off controls, dust suppression measures, or groundwater and surface water monitoring.",
C. Solid/Sludge Disposal,1. Non-Hazardous Waste Landfill (Subtitle D),"1.2 Industrial Waste, On-Site","Memo: Hazardous Waste Identification Rule for Process Wastes: Waste Management Cost Data (Sept. 27, 1996)","Synthetic-lined with Synthetic Final Cap Without Daily Cover: 1,500,000 tons/yr: $3.39/ton",1995,1.138,"Synthetic-lined with Synthetic Final Cap Without Daily Cover: 1,500,000 tons/yr: $3.86/ton","Note: Annualized cost based on a 20 year operating life assuming a 7% interest rate.  See reference if you wish to add leachate collection system, site access controls, run-on/run-off controls, dust suppression measures, or groundwater and surface water monitoring.",
C. Solid/Sludge Disposal,1. Non-Hazardous Waste Landfill (Subtitle D),"1.2 Industrial Waste, On-Site","Memo: Hazardous Waste Identification Rule for Process Wastes: Waste Management Cost Data (Sept. 27, 1996)","Synthetic-lined with Synthetic Final Cap Without Daily Cover: 2,400,000 tons/yr: $2.85/ton",1995,1.138,"Synthetic-lined with Synthetic Final Cap Without Daily Cover: 2,400,000 tons/yr: $3.24/ton","Note: Annualized cost based on a 20 year operating life assuming a 7% interest rate.  See reference if you wish to add leachate collection system, site access controls, run-on/run-off controls, dust suppression measures, or groundwater and surface water monitoring.",
C. Solid/Sludge Disposal,1. Non-Hazardous Waste Landfill (Subtitle D),"1.3 Municipal Waste, Off-Site","Solid Waste Digest, Vol. 7, No. 8, August 1997 (publication of Chartwell Information Publishers)",$37.02/ton,1997,1.076,$39.83/ton,n/a,
C. Solid/Sludge Disposal,2. Hazardous Waste Landfill (Subtitle C),"2.1 With Stabilization, Off-Site",Hazardous Waste Resource Center January 2000 Incinerator and Landfill Cost Data,Bulk: $185/ton,1999,1.025,Bulk: $190/ton,n/a,
C. Solid/Sludge Disposal,2. Hazardous Waste Landfill (Subtitle C),"2.1 With Stabilization, Off-Site",Hazardous Waste Resource Center January 2000 Incinerator and Landfill Cost Data,Drummed: $118/drum,1999,1.025,Drummed: $121/drum,n/a,
C. Solid/Sludge Disposal,2. Hazardous Waste Landfill (Subtitle C),"2.1 With Stabilization, Off-Site",Hazardous Waste Resource Center January 2000 Incinerator and Landfill Cost Data,Soil: $181/ton,1999,1.025,Soil: $186/ton,n/a,
C. Solid/Sludge Disposal,2. Hazardous Waste Landfill (Subtitle C),"2.2 Without Stabilization, Off-Site",Hazardous Waste Resource Center January 2000 Incinerator and Landfill Cost Data,Bulk: $98/ton,1999,1.025,Bulk: $100/ton,n/a,
C. Solid/Sludge Disposal,2. Hazardous Waste Landfill (Subtitle C),"2.2 Without Stabilization, Off-Site",Hazardous Waste Resource Center January 2000 Incinerator and Landfill Cost Data,Drummed: $80/drum,1999,1.025,Drummed: $82/drum,n/a,
C. Solid/Sludge Disposal,2. Hazardous Waste Landfill (Subtitle C),"2.2 Without Stabilization, Off-Site",Hazardous Waste Resource Center January 2000 Incinerator and Landfill Cost Data,Soil: $97/ton,1999,1.025,Soil: $99/ton,n/a,
C. Solid/Sludge Disposal,2. Hazardous Waste Landfill (Subtitle C),"2.3 Without Stabilization, On-Site","Memo: Hazardous Waste Identification Rule for Process Wastes: Waste Management Cost Data ( Sept. 27, 1996)","With Daily Cover: 3,000 tons/yr: $530.04/ton",1995,1.138,"With Daily Cover: 3,000 tons/yr: $603.19/ton",Note: Annualized cost based on a 20 year operating life assuming a 7% interest rate. ,
C. Solid/Sludge Disposal,2. Hazardous Waste Landfill (Subtitle C),"2.3 Without Stabilization, On-Site","Memo: Hazardous Waste Identification Rule for Process Wastes: Waste Management Cost Data ( Sept. 27, 1996)","With Daily Cover: 30,000 tons/yr: $62.39/ton",1995,1.138,"With Daily Cover: 30,000 tons/yr: $71.00/ton",Note: Annualized cost based on a 20 year operating life assuming a 7% interest rate. ,
C. Solid/Sludge Disposal,2. Hazardous Waste Landfill (Subtitle C),"2.3 Without Stabilization, On-Site","Memo: Hazardous Waste Identification Rule for Process Wastes: Waste Management Cost Data ( Sept. 27, 1996)","With Daily Cover: 300,000 tons/yr: $15.62/ton",1995,1.138,"With Daily Cover: 300,000 tons/yr: $17.78/ton",Note: Annualized cost based on a 20 year operating life assuming a 7% interest rate. ,
C. Solid/Sludge Disposal,2. Hazardous Waste Landfill (Subtitle C),"2.3 Without Stabilization, On-Site","Memo: Hazardous Waste Identification Rule for Process Wastes: Waste Management Cost Data ( Sept. 27, 1996)","With Daily Cover: 1,500,000 tons/yr: $11.46/ton",1995,1.138,"With Daily Cover: 1,500,000 tons/yr: $13.04/ton",Note: Annualized cost based on a 20 year operating life assuming a 7% interest rate. ,
C. Solid/Sludge Disposal,2. Hazardous Waste Landfill (Subtitle C),"2.3 Without Stabilization, On-Site","Memo: Hazardous Waste Identification Rule for Process Wastes: Waste Management Cost Data ( Sept. 27, 1996)","With Daily Cover: 2,400,000 tons/yr: $11.07/ton",1995,1.138,"With Daily Cover: 2,400,000 tons/yr: $12.60/ton",Note: Annualized cost based on a 20 year operating life assuming a 7% interest rate. ,
C. Solid/Sludge Disposal,2. Hazardous Waste Landfill (Subtitle C),"2.3 Without Stabilization, On-Site","Memo: Hazardous Waste Identification Rule for Process Wastes: Waste Management Cost Data ( Sept. 27, 1996)","Without Daily Cover: 3,000 tons/yr: $458.11/ton",1995,1.138,"Without Daily Cover: 3,000 tons/yr: $521.33/ton",Note: Annualized cost based on a 20 year operating life assuming a 7% interest rate. ,
C. Solid/Sludge Disposal,2. Hazardous Waste Landfill (Subtitle C),"2.3 Without Stabilization, On-Site","Memo: Hazardous Waste Identification Rule for Process Wastes: Waste Management Cost Data ( Sept. 27, 1996)","Without Daily Cover: 30,000 tons/yr: $53.70/ton",1995,1.138,"Without Daily Cover: 30,000 tons/yr: $61.11/ton",Note: Annualized cost based on a 20 year operating life assuming a 7% interest rate. ,
C. Solid/Sludge Disposal,2. Hazardous Waste Landfill (Subtitle C),"2.3 Without Stabilization, On-Site","Memo: Hazardous Waste Identification Rule for Process Wastes: Waste Management Cost Data ( Sept. 27, 1996)","Without Daily Cover: 300,000 tons/yr: $13.25/ton",1995,1.138,"Without Daily Cover: 300,000 tons/yr: $15.08/ton",Note: Annualized cost based on a 20 year operating life assuming a 7% interest rate. ,
C. Solid/Sludge Disposal,2. Hazardous Waste Landfill (Subtitle C),"2.3 Without Stabilization, On-Site","Memo: Hazardous Waste Identification Rule for Process Wastes: Waste Management Cost Data ( Sept. 27, 1996)","Without Daily Cover: 1,500,000 tons/yr: $9.66/ton",1995,1.138,"Without Daily Cover: 1,500,000 tons/yr: $10.99/ton",Note: Annualized cost based on a 20 year operating life assuming a 7% interest rate. ,
C. Solid/Sludge Disposal,2. Hazardous Waste Landfill (Subtitle C),"2.3 Without Stabilization, On-Site","Memo: Hazardous Waste Identification Rule for Process Wastes: Waste Management Cost Data ( Sept. 27, 1996)","Without Daily Cover: 2,400,000 tons/yr: $9.32/ton",1995,1.138,"Without Daily Cover: 2,400,000 tons/yr: $10.61/ton",Note: Annualized cost based on a 20 year operating life assuming a 7% interest rate. ,
C. Solid/Sludge Disposal,3. Low-Level Radioactive Waste Landfill,"3.1. Mixed Waste, Off-Site","Regulatory Impact Analysis: Relief from Regulatory Requirements for Storage and Disposal of Mixed Waste, Draft (July 1999)",Envirocare of Utah = $100/cf,1999,1.025,Envirocare of Utah = $103/cf,n/a,
C. Solid/Sludge Disposal,3. Low-Level Radioactive Waste Landfill,"3.1. Mixed Waste, Off-Site","Regulatory Impact Analysis: Relief from Regulatory Requirements for Storage and Disposal of Mixed Waste, Draft (July 1999)","Chem-Nuclear, Inc., Barnwell, South Carolina = $500/cf (if new disposal facility built)",1999,1.025,"Chem-Nuclear, Inc., Barnwell, South Carolina = $513/cf (if new disposal facility built)",n/a,
C. Solid/Sludge Disposal,3. Low-Level Radioactive Waste Landfill,"3.1. Mixed Waste, Off-Site","Regulatory Impact Analysis: Relief from Regulatory Requirements for Storage and Disposal of Mixed Waste, Draft (July 1999)","US Ecology, Richland, Washington = $500/cf (if new disposal facility built)",1999,1.025,"US Ecology, Richland, Washington = $513/cf (if new disposal facility built)",n/a,
C. Solid/Sludge Disposal,3. Low-Level Radioactive Waste Landfill,"3.2. Non-Mixed Waste, Off-Site","Regulatory Impact Analysis: Relief from Regulatory Requirements for Storage and Disposal of Mixed Waste, Draft (July 1999)",Envirocare of Utah = $80/cf,1999,1.025,Envirocare of Utah = $82/cf,n/a,
C. Solid/Sludge Disposal,3. Low-Level Radioactive Waste Landfill,"3.2. Non-Mixed Waste, Off-Site","Regulatory Impact Analysis: Relief from Regulatory Requirements for Storage and Disposal of Mixed Waste, Draft (July 1999)","Chem-Nuclear, Inc., Barnwell, South Carolina = $400/cf",1999,1.025,"Chem-Nuclear, Inc., Barnwell, South Carolina = $410/cf",n/a,
C. Solid/Sludge Disposal,3. Low-Level Radioactive Waste Landfill,"3.2. Non-Mixed Waste, Off-Site","Regulatory Impact Analysis: Relief from Regulatory Requirements for Storage and Disposal of Mixed Waste, Draft (July 1999)","US Ecology, Richland, Washington = $290/cf",1999,1.025,"US Ecology, Richland, Washington = $297/cf",n/a,
Cost Item Category,Cost Item Sub Category (where applicable),Type of Cost Item,Sources of Cost / Pricing Data,Format of Cost Data,Year of  Data,Update Factor,Updated Cost (2000$),Notes/Assumptions,
D. Liquid Disposal,n/a,1. Deepwell Injection,Estimating Costs for the Economic Benefits of RCRA Noncompliance (Sept. 1997),Mixed Organic/Inorganic Liquids and Inorganic Liquids with Metals: Bulk - $175/ton or $0.77/gal,1997,1.076,Mixed Organic/Inorganic Liquids and Inorganic Liquids with Metals: Bulk - $188/ton or $0.83/gal,n/a,
D. Liquid Disposal,n/a,1. Deepwell Injection,Estimating Costs for the Economic Benefits of RCRA Noncompliance (Sept. 1997),Mixed Organic/Inorganic Liquids and Inorganic Liquids with Metals: Drummed - $55/drum*,1997,1.076,Mixed Organic/Inorganic Liquids and Inorganic Liquids with Metals: Drummed - $59/drum*,* derived from bulk prices with a 50 percent price increase to account for drum handling.,
D. Liquid Disposal,n/a,"2. Non-Hazardous POTW Discharge (e.g., Leachate Disposal)",Economic Impact Analysis of the Petroleum Hazardous Waste Listing (K169-K172) on Leachate Management Costs for Municipal and Industrial Waste Landfills Containing Petroleum Wastes - Addendum (February 1999),truck off site to POTW for management = $0.07/gallon (excludes transportation),1998,1.050,truck off site to POTW for management = $0.07/gallon (excludes transportation),n/a,
D. Liquid Disposal,n/a,"2. Non-Hazardous POTW Discharge (e.g., Leachate Disposal)",Economic Impact Analysis of the Petroleum Hazardous Waste Listing (K169-K172) on Leachate Management Costs for Municipal and Industrial Waste Landfills Containing Petroleum Wastes - Addendum (February 1999),"discharge to POTW (sewer) = $1.50/1,000 gallons",1998,1.050,"discharge to POTW (sewer) = $1.58/1,000 gallons",n/a,
D. Liquid Disposal,n/a,"3. Hazardous POTW/TSD Discharge/Disposal (e.g., Leachate Disposal)",Economic Impact Analysis of the Petroleum Hazardous Waste Listing (K169-K172) on Leachate Management Costs for Municipal and Industrial Waste Landfills Containing Petroleum Wastes - Addendum (February 1999),$1.75/gallon to $2.96/gallon,1998,1.050,$1.84/gallon to $3.11/gallon,n/a,
Cost Item Category,Cost Item Sub Category (where applicable),Type of Cost Item,Sources of Cost / Pricing Data,Format of Cost Data,Year of  Data,Update Factor,Updated Cost (2000$),Notes/Assumptions,
E. Thermal Treatment,1. Thermal Desorber,1.1 Off-Site,"VOC-contaminated soil costs were developed from the 1999 Remedial Action Cost Engineering and Requirements (RACER 1999) cost estimating software; costs in this software are based on the 1999 Environmental Cost Handling Options and Solutions (ECHOS) cost database. PAH-contaminated soil costs were obtained from Memo: Costs of the Phase IV LDRs on MGP Wastes, January 1998",VOC-contaminated soil: $48.67/ton,1999,1.025,VOC-contaminated soil: $49.89/ton,n/a,
E. Thermal Treatment,1. Thermal Desorber,1.1 Off-Site,"VOC-contaminated soil costs were developed from the 1999 Remedial Action Cost Engineering and Requirements (RACER 1999) cost estimating software; costs in this software are based on the 1999 Environmental Cost Handling Options and Solutions (ECHOS) cost database. PAH-contaminated soil costs were obtained from Memo: Costs of the Phase IV LDRs on MGP Wastes, January 1998",PAH-contaminated soil: $117/ton,1998*,1.050,PAH-contaminated soil: $123/ton,"* Presumed year of cost data.  The source of cost data did not directly indicate the year the cost data is based upon.  In these cases, a year of data is assumed from the date of the source document or references within the source document.",
E. Thermal Treatment,1. Thermal Desorber,1.2 On-Site,"Memo: Costs of the Phase IV LDRs on MGP Wastes, January 1998",$135.75/ton,1998*,1.05,$142.54/ton,"* Presumed year of cost data.  The source of cost data did not directly indicate the year the cost data is based upon.  In these cases, a year of data is assumed from the date of the source document or references within the source document.",
E. Thermal Treatment,2. Incineration,2.1 Off-Site,Hazardous Waste Resource Center January 2000 Incinerator and Landfill Cost Data,Drummed Halogen Liquid Organics: $192.00/drum,1999,1.025,Drummed Halogen Liquid Organics: $196.80/drum,n/a,
E. Thermal Treatment,2. Incineration,2.1 Off-Site,Hazardous Waste Resource Center January 2000 Incinerator and Landfill Cost Data,Drummed Non-Halogen Liquid:  $124.00/drum,1999,1.025,Drummed Non-Halogen Liquid:  $127.10/drum,n/a,
E. Thermal Treatment,2. Incineration,2.1 Off-Site,Hazardous Waste Resource Center January 2000 Incinerator and Landfill Cost Data,Bulk Non-Halogen Liquid: $0.59/gallon,1999,1.025,Bulk Non-Halogen Liquid: $0.60/gallon,n/a,
E. Thermal Treatment,2. Incineration,2.1 Off-Site,Hazardous Waste Resource Center January 2000 Incinerator and Landfill Cost Data,Lab Packs: $2.42/lb,1999,1.025,Lab Packs: $2.48/lb,n/a,
E. Thermal Treatment,2. Incineration,2.1 Off-Site,Hazardous Waste Resource Center January 2000 Incinerator and Landfill Cost Data,Drummed Pumpable Sludge: $207.00/drum,1999,1.025,Drummed Pumpable Sludge: $212.18/drum,n/a,
E. Thermal Treatment,2. Incineration,2.1 Off-Site,Hazardous Waste Resource Center January 2000 Incinerator and Landfill Cost Data,Bulk Pumpable Sludge: $651.00/ton,1999,1.025,Bulk Pumpable Sludge: $667.28/ton,n/a,
E. Thermal Treatment,2. Incineration,2.1 Off-Site,Hazardous Waste Resource Center January 2000 Incinerator and Landfill Cost Data,Bulk Contaminated Soils: $559.00/ton,1999,1.025,Bulk Contaminated Soils: $573.00/ton,n/a,
E. Thermal Treatment,2. Incineration,2.1 Off-Site,Hazardous Waste Resource Center January 2000 Incinerator and Landfill Cost Data,Aerosols: $0.47/lb,1999,1.025,Aerosols: $0.48/lb,n/a,
E. Thermal Treatment,2. Incineration,2.2 On-Site,"Memo: Costs of the Phase IV LDRs on MGP Wastes, January 1998",$333/ton,1998*,1.05,$350/ton,"* Presumed year of cost data.  The source of cost data did not directly indicate the year the cost data is based upon.  In these cases, a year of data is assumed from the date of the source document or references within the source document.",
E. Thermal Treatment,3. Boilers and Industrial Furnaces,"3.1 Utility Co-Burning, Off-Site",Application of Phase IV Land Disposal Restrictions to Newly Identified Mineral Processing Wastes,$135/ton,1998*,1.050,$142/ton,"* Presumed year of cost data.  The source of cost data did not directly indicate the year the cost data is based upon.  In these cases, a year of data is assumed from the date of the source document or references within the source document.",
E. Thermal Treatment,3. Boilers and Industrial Furnaces,"3.2. Cement Kiln, Off-Site","Memo: Costs of the Phase IV LDRs on MGP Wastes, January 1998",Hazardous: $450/ton,1998*,1.050,Hazardous: $473/ton,"* Presumed year of cost data.  The source of cost data did not directly indicate the year the cost data is based upon.  In these cases, a year of data is assumed from the date of the source document or references within the source document.",
E. Thermal Treatment,3. Boilers and Industrial Furnaces,"3.2. Cement Kiln, Off-Site","Memo: Costs of the Phase IV LDRs on MGP Wastes, January 1999",Non-hazardous: $53/ton,1998*,1.050,Non-hazardous: $56/ton,"* Presumed year of cost data.  The source of cost data did not directly indicate the year the cost data is based upon.  In these cases, a year of data is assumed from the date of the source document or references within the source document.",
Cost Item Category,Cost Item Sub Category (where applicable),Type of Cost Item,Sources of Cost / Pricing Data,Format of Cost Data,Year of  Data,Update Factor,Updated Cost (2000$),Notes/Assumptions,
F. Other Land Treatment / Storage / Containment,1. Land Treatment,"1.1 On-Site, Non-Hazardous","Memo: Hazardous Waste Identification Rule for Process Wastes: Waste Management Cost Data (Sept. 27, 1996)","1,000 tons/yr: $98.52/ton",1995,1.138,"1,000 tons/yr: $112.12/ton","Note: Annualized cost based on a 20 year operating life assuming a 7% interest rate.  See 1996 reference if you wish to add costs for site access controls, run-on/run-off controls, dust suppression measures, monitoring, or final cover. These costs add between $30.12/ton and $2.05/ton.",
F. Other Land Treatment / Storage / Containment,1. Land Treatment,"1.1 On-Site, Non-Hazardous","Memo: Hazardous Waste Identification Rule for Process Wastes: Waste Management Cost Data (Sept. 27, 1996)","5,000 tons/yr: $24.67/ton",1995,1.138,"5,000 tons/yr: $28.07/ton","Note: Annualized cost based on a 20 year operating life assuming a 7% interest rate.  See 1996 reference if you wish to add costs for site access controls, run-on/run-off controls, dust suppression measures, monitoring, or final cover. These costs add between $30.12/ton and $2.05/ton.",
F. Other Land Treatment / Storage / Containment,1. Land Treatment,"1.1 On-Site, Non-Hazardous","Memo: Hazardous Waste Identification Rule for Process Wastes: Waste Management Cost Data (Sept. 27, 1996)","10,000 tons/yr: $15.44/ton",1995,1.138,"10,000 tons/yr: $17.57/ton","Note: Annualized cost based on a 20 year operating life assuming a 7% interest rate.  See 1996 reference if you wish to add costs for site access controls, run-on/run-off controls, dust suppression measures, monitoring, or final cover. These costs add between $30.12/ton and $2.05/ton.",
F. Other Land Treatment / Storage / Containment,1. Land Treatment,"1.1 On-Site, Non-Hazardous","Memo: Hazardous Waste Identification Rule for Process Wastes: Waste Management Cost Data (Sept. 27, 1996)","25,000 tons/yr: $9.90/ton",1995,1.138,"25,000 tons/yr: $11.27/ton","Note: Annualized cost based on a 20 year operating life assuming a 7% interest rate.  See 1996 reference if you wish to add costs for site access controls, run-on/run-off controls, dust suppression measures, monitoring, or final cover. These costs add between $30.12/ton and $2.05/ton.",
F. Other Land Treatment / Storage / Containment,1. Land Treatment,"1.1 On-Site, Non-Hazardous","Memo: Hazardous Waste Identification Rule for Process Wastes: Waste Management Cost Data (Sept. 27, 1996)","50,000 tons/yr: $8.05/ton",1995,1.138,"50,000 tons/yr: $9.16/ton","Note: Annualized cost based on a 20 year operating life assuming a 7% interest rate.  See 1996 reference if you wish to add costs for site access controls, run-on/run-off controls, dust suppression measures, monitoring, or final cover. These costs add between $30.12/ton and $2.05/ton.",
F. Other Land Treatment / Storage / Containment,1. Land Treatment,"1.1 On-Site, Non-Hazardous",Cost and Economic Impact Analysis of Listing Hazardous Wastes from the Petroleum Refining Industry (Sept. 1995),$79/ton,1992,1.238,$98/ton,Note: This estimate could be a mixture of treating non-hazardous and hazardous wastes.,
F. Other Land Treatment / Storage / Containment,1. Land Treatment,"1.2 On-Site, Hazardous","Memo: Hazardous Waste Identification Rule for Process Wastes: Waste Management Cost Data (Sept. 27, 1996)","1,000 tons/yr: $234.55/ton",1997,1.076,"1,000 tons/yr: $252.38/ton",Note: Annualized cost based on a 20 year operating life assuming a 7% interest rate.,
F. Other Land Treatment / Storage / Containment,1. Land Treatment,"1.2 On-Site, Hazardous","Memo: Hazardous Waste Identification Rule for Process Wastes: Waste Management Cost Data (Sept. 27, 1996)","5,000 tons/yr: $123.21/ton",1997,1.076,"5,000 tons/yr: $132.57/ton",Note: Annualized cost based on a 20 year operating life assuming a 7% interest rate.,
F. Other Land Treatment / Storage / Containment,1. Land Treatment,"1.2 On-Site, Hazardous","Memo: Hazardous Waste Identification Rule for Process Wastes: Waste Management Cost Data (Sept. 27, 1996)","10,000 tons/yr: $93.37/ton",1997,1.076,"10,000 tons/yr: $100.47/ton",Note: Annualized cost based on a 20 year operating life assuming a 7% interest rate.,
F. Other Land Treatment / Storage / Containment,1. Land Treatment,"1.2 On-Site, Hazardous","Memo: Hazardous Waste Identification Rule for Process Wastes: Waste Management Cost Data (Sept. 27, 1996)","25,000 tons/yr: $64.72/ton",1997,1.076,"25,000 tons/yr: $69.64/ton",Note: Annualized cost based on a 20 year operating life assuming a 7% interest rate.,
F. Other Land Treatment / Storage / Containment,1. Land Treatment,"1.2 On-Site, Hazardous","Memo: Hazardous Waste Identification Rule for Process Wastes: Waste Management Cost Data (Sept. 27, 1996)","50,000 tons/yr: $49.05/ton",1997,1.076,"50,000 tons/yr: $52.78/ton",Note: Annualized cost based on a 20 year operating life assuming a 7% interest rate.,
F. Other Land Treatment / Storage / Containment,1. Land Treatment,1.3 Off-Site,"Memo: Costs for Subtitle D and C Management Units (Sept. 29, 1995)",$71/ton,1992,1.238,$88/ton,Note: This estimate could be a mixture of treating non-hazardous and hazardous wastes.,
F. Other Land Treatment / Storage / Containment,2. Surface Impoundment,2.1 Non-Hazardous Wastewater Storage,"Regulatory Impact Analysis of the Supplemental Proposed Rule Applying Phase IV Land Disposal Restrictions to Newly Identified Mineral Processing Wastes, April 15, 1997.",Lined Impoundments: Y = 0.0704x + 1955.1,1995,1.138,Lined Impoundments: Y = 0.0801x + 2224.9,(See Appendix F-2.1 for assumptions),
F. Other Land Treatment / Storage / Containment,2. Surface Impoundment,2.1 Non-Hazardous Wastewater Storage,"Regulatory Impact Analysis of the Supplemental Proposed Rule Applying Phase IV Land Disposal Restrictions to Newly Identified Mineral Processing Wastes, April 15, 1997.",Unlined Surface Impoundments with Groundwater Monitoring: Y = 0.0626x + 16054,1995,1.138,Unlined Surface Impoundments with Groundwater Monitoring: Y = 0.0712x + 18269,(See Appendix F-2.1 for assumptions),
F. Other Land Treatment / Storage / Containment,2. Surface Impoundment,2.1 Non-Hazardous Wastewater Storage,"Regulatory Impact Analysis of the Supplemental Proposed Rule Applying Phase IV Land Disposal Restrictions to Newly Identified Mineral Processing Wastes, April 15, 1997.","Unlined, Unmonitored Surface Impoundments: Y = 0.0491x + 1413.7",1995,1.138,"Unlined, Unmonitored Surface Impoundments: Y = 0.0559x + 1608.8",(See Appendix F-2.1 for assumptions),
F. Other Land Treatment / Storage / Containment,2. Surface Impoundment,2.2 Non-Hazardous Wastewater Treatment,"Memo:  Hazardous Waste Identification Rule for Process Wastes: Waste Management Cost Data (Sept. 27, 1996)","Unlined: 32,000 kgal/yr: $0.21/kgal",1995,1.138,"Unlined: 32,000 kgal/yr: $0.24/kgal","Note:  Annualized cost based on a 20 year operating life assuming a 7% interest rate.  See reference if you wish to add costs for aeration, freeboard, site access controls, groundwater and surface water monitoring, annual dredging, final cover, or leachate collection system.",
F. Other Land Treatment / Storage / Containment,2. Surface Impoundment,2.2 Non-Hazardous Wastewater Treatment,"Memo:  Hazardous Waste Identification Rule for Process Wastes: Waste Management Cost Data (Sept. 27, 1996)","Unlined: 160,000 kgal/yr: $0.07/kgal",1995,1.138,"Unlined: 160,000 kgal/yr: $0.08/kgal","Note:  Annualized cost based on a 20 year operating life assuming a 7% interest rate.  See reference if you wish to add costs for aeration, freeboard, site access controls, groundwater and surface water monitoring, annual dredging, final cover, or leachate collection system.",
F. Other Land Treatment / Storage / Containment,2. Surface Impoundment,2.2 Non-Hazardous Wastewater Treatment,"Memo:  Hazardous Waste Identification Rule for Process Wastes: Waste Management Cost Data (Sept. 27, 1996)","Unlined: 320,000 kgal/yr: $0.05/kgal",1995,1.138,"Unlined: 320,000 kgal/yr: $0.06/kgal","Note:  Annualized cost based on a 20 year operating life assuming a 7% interest rate.  See reference if you wish to add costs for aeration, freeboard, site access controls, groundwater and surface water monitoring, annual dredging, final cover, or leachate collection system.",
F. Other Land Treatment / Storage / Containment,2. Surface Impoundment,2.2 Non-Hazardous Wastewater Treatment,"Memo:  Hazardous Waste Identification Rule for Process Wastes: Waste Management Cost Data (Sept. 27, 1996)","Unlined: 800,000 kgal/yr: $0.04/kgal",1995,1.138,"Unlined: 800,000 kgal/yr: $0.05/kgal","Note:  Annualized cost based on a 20 year operating life assuming a 7% interest rate.  See reference if you wish to add costs for aeration, freeboard, site access controls, groundwater and surface water monitoring, annual dredging, final cover, or leachate collection system.",
F. Other Land Treatment / Storage / Containment,2. Surface Impoundment,2.2 Non-Hazardous Wastewater Treatment,"Memo:  Hazardous Waste Identification Rule for Process Wastes: Waste Management Cost Data (Sept. 27, 1996)","Unlined: 1,600,000 kgal/yr: $0.03/kgal",1995,1.138,"Unlined: 1,600,000 kgal/yr: $0.03/kgal","Note:  Annualized cost based on a 20 year operating life assuming a 7% interest rate.  See reference if you wish to add costs for aeration, freeboard, site access controls, groundwater and surface water monitoring, annual dredging, final cover, or leachate collection system.",
F. Other Land Treatment / Storage / Containment,2. Surface Impoundment,2.2 Non-Hazardous Wastewater Treatment,"Memo:  Hazardous Waste Identification Rule for Process Wastes: Waste Management Cost Data (Sept. 27, 1996)","Unlined: 2,400,000 kgal/yr: $0.03/kgal",1995,1.138,"Unlined: 2,400,000 kgal/yr: $0.03/kgal","Note:  Annualized cost based on a 20 year operating life assuming a 7% interest rate.  See reference if you wish to add costs for aeration, freeboard, site access controls, groundwater and surface water monitoring, annual dredging, final cover, or leachate collection system.",
F. Other Land Treatment / Storage / Containment,2. Surface Impoundment,2.2 Non-Hazardous Wastewater Treatment,"Memo:  Hazardous Waste Identification Rule for Process Wastes: Waste Management Cost Data (Sept. 27, 1996)","Clay-lined: 32,000 kgal/yr: $0.31/kgal",1995,1.138,"Clay-lined: 32,000 kgal/yr: $0.35/kgal","Note:  Annualized cost based on a 20 year operating life assuming a 7% interest rate.  See reference if you wish to add costs for aeration, freeboard, site access controls, groundwater and surface water monitoring, annual dredging, final cover, or leachate collection system.",
F. Other Land Treatment / Storage / Containment,2. Surface Impoundment,2.2 Non-Hazardous Wastewater Treatment,"Memo:  Hazardous Waste Identification Rule for Process Wastes: Waste Management Cost Data (Sept. 27, 1996)","Clay-lined: 160,000 kgal/yr: $0.14/kgal",1995,1.138,"Clay-lined: 160,000 kgal/yr: $0.16/kgal","Note:  Annualized cost based on a 20 year operating life assuming a 7% interest rate.  See reference if you wish to add costs for aeration, freeboard, site access controls, groundwater and surface water monitoring, annual dredging, final cover, or leachate collection system.",
F. Other Land Treatment / Storage / Containment,2. Surface Impoundment,2.2 Non-Hazardous Wastewater Treatment,"Memo:  Hazardous Waste Identification Rule for Process Wastes: Waste Management Cost Data (Sept. 27, 1996)","Clay-lined: 320,000 kgal/yr: $0.11/kgal",1995,1.138,"Clay-lined: 320,000 kgal/yr: $0.13/kgal","Note:  Annualized cost based on a 20 year operating life assuming a 7% interest rate.  See reference if you wish to add costs for aeration, freeboard, site access controls, groundwater and surface water monitoring, annual dredging, final cover, or leachate collection system.",
F. Other Land Treatment / Storage / Containment,2. Surface Impoundment,2.2 Non-Hazardous Wastewater Treatment,"Memo:  Hazardous Waste Identification Rule for Process Wastes: Waste Management Cost Data (Sept. 27, 1996)","Clay-lined: 800,000 kgal/yr: $0.09/kgal",1995,1.138,"Clay-lined: 800,000 kgal/yr: $0.10/kgal","Note:  Annualized cost based on a 20 year operating life assuming a 7% interest rate.  See reference if you wish to add costs for aeration, freeboard, site access controls, groundwater and surface water monitoring, annual dredging, final cover, or leachate collection system.",
F. Other Land Treatment / Storage / Containment,2. Surface Impoundment,2.2 Non-Hazardous Wastewater Treatment,"Memo:  Hazardous Waste Identification Rule for Process Wastes: Waste Management Cost Data (Sept. 27, 1996)","Clay-lined: 1,600,000 kgal/yr: $0.08/kgal",1995,1.138,"Clay-lined: 1,600,000 kgal/yr: $0.09/kgal","Note:  Annualized cost based on a 20 year operating life assuming a 7% interest rate.  See reference if you wish to add costs for aeration, freeboard, site access controls, groundwater and surface water monitoring, annual dredging, final cover, or leachate collection system.",
F. Other Land Treatment / Storage / Containment,2. Surface Impoundment,2.2 Non-Hazardous Wastewater Treatment,"Memo:  Hazardous Waste Identification Rule for Process Wastes: Waste Management Cost Data (Sept. 27, 1996)","Clay-lined: 2,400,000 kgal/yr: $0.08/kgal",1995,1.138,"Clay-lined: 2,400,000 kgal/yr: $0.09/kgal","Note:  Annualized cost based on a 20 year operating life assuming a 7% interest rate.  See reference if you wish to add costs for aeration, freeboard, site access controls, groundwater and surface water monitoring, annual dredging, final cover, or leachate collection system.",
F. Other Land Treatment / Storage / Containment,2. Surface Impoundment,2.2 Non-Hazardous Wastewater Treatment,"Memo:  Hazardous Waste Identification Rule for Process Wastes: Waste Management Cost Data (Sept. 27, 1996)","Synthetic-lined: 32,000 kgal/yr: $0.25/kgal",1995,1.138,"Synthetic-lined: 32,000 kgal/yr: $0.28/kgal","Note:  Annualized cost based on a 20 year operating life assuming a 7% interest rate.  See reference if you wish to add costs for aeration, freeboard, site access controls, groundwater and surface water monitoring, annual dredging, final cover, or leachate collection system.",
F. Other Land Treatment / Storage / Containment,2. Surface Impoundment,2.2 Non-Hazardous Wastewater Treatment,"Memo:  Hazardous Waste Identification Rule for Process Wastes: Waste Management Cost Data (Sept. 27, 1996)","Synthetic-lined: 160,000 kgal/yr: $0.10/kgal",1995,1.138,"Synthetic-lined: 160,000 kgal/yr: $0.11/kgal","Note:  Annualized cost based on a 20 year operating life assuming a 7% interest rate.  See reference if you wish to add costs for aeration, freeboard, site access controls, groundwater and surface water monitoring, annual dredging, final cover, or leachate collection system.",
F. Other Land Treatment / Storage / Containment,2. Surface Impoundment,2.2 Non-Hazardous Wastewater Treatment,"Memo:  Hazardous Waste Identification Rule for Process Wastes: Waste Management Cost Data (Sept. 27, 1996)","Synthetic-lined: 320,000 kgal/yr: $0.07/kgal",1995,1.138,"Synthetic-lined: 320,000 kgal/yr: $0.08/kgal","Note:  Annualized cost based on a 20 year operating life assuming a 7% interest rate.  See reference if you wish to add costs for aeration, freeboard, site access controls, groundwater and surface water monitoring, annual dredging, final cover, or leachate collection system.",
F. Other Land Treatment / Storage / Containment,2. Surface Impoundment,2.2 Non-Hazardous Wastewater Treatment,"Memo:  Hazardous Waste Identification Rule for Process Wastes: Waste Management Cost Data (Sept. 27, 1996)","Synthetic-lined: 800,000 kgal/yr: $0.06/kgal",1995,1.138,"Synthetic-lined: 800,000 kgal/yr: $0.07/kgal","Note:  Annualized cost based on a 20 year operating life assuming a 7% interest rate.  See reference if you wish to add costs for aeration, freeboard, site access controls, groundwater and surface water monitoring, annual dredging, final cover, or leachate collection system.",
F. Other Land Treatment / Storage / Containment,2. Surface Impoundment,2.2 Non-Hazardous Wastewater Treatment,"Memo:  Hazardous Waste Identification Rule for Process Wastes: Waste Management Cost Data (Sept. 27, 1996)","Synthetic-lined: 1,600,000 kgal/yr: $0.05/kgal",1995,1.138,"Synthetic-lined: 1,600,000 kgal/yr: $0.06/kgal","Note:  Annualized cost based on a 20 year operating life assuming a 7% interest rate.  See reference if you wish to add costs for aeration, freeboard, site access controls, groundwater and surface water monitoring, annual dredging, final cover, or leachate collection system.",
F. Other Land Treatment / Storage / Containment,2. Surface Impoundment,2.2 Non-Hazardous Wastewater Treatment,"Memo:  Hazardous Waste Identification Rule for Process Wastes: Waste Management Cost Data (Sept. 27, 1996)","Synthetic-lined: 2,400,000 kgal/yr: $0.05/kgal",1995,1.138,"Synthetic-lined: 2,400,000 kgal/yr: $0.06/kgal","Note:  Annualized cost based on a 20 year operating life assuming a 7% interest rate.  See reference if you wish to add costs for aeration, freeboard, site access controls, groundwater and surface water monitoring, annual dredging, final cover, or leachate collection system.",
F. Other Land Treatment / Storage / Containment,2. Surface Impoundment,2.3 Hazardous (Subtitle C) Treatment,"Memo:  Hazardous Waste Identification Rule for Process Wastes: Waste Management Cost Data (Sept. 27, 1996)","Without aeration: 32,000 kgal/yr: $5.33/kgal",1995,1.138,"Without aeration: 32,000 kgal/yr: $6.07/kgal",Costs include capital and O&M costs as well as closure and post-closure costs as appropriate.  Costs include annual dredging.  Annualized cost based on a 20 year operating life assuming a 7% interest rate. ,
F. Other Land Treatment / Storage / Containment,2. Surface Impoundment,2.3 Hazardous (Subtitle C) Treatment,"Memo:  Hazardous Waste Identification Rule for Process Wastes: Waste Management Cost Data (Sept. 27, 1996)","Without aeration: 160,000 kgal/yr: $1.41/kgal",1995,1.138,"Without aeration: 160,000 kgal/yr: $1.60/kgal",Costs include capital and O&M costs as well as closure and post-closure costs as appropriate.  Costs include annual dredging.  Annualized cost based on a 20 year operating life assuming a 7% interest rate. ,
F. Other Land Treatment / Storage / Containment,2. Surface Impoundment,2.3 Hazardous (Subtitle C) Treatment,"Memo:  Hazardous Waste Identification Rule for Process Wastes: Waste Management Cost Data (Sept. 27, 1996)","Without aeration: 320,000 kgal/yr: $0.90/kgal",1995,1.138,"Without aeration: 320,000 kgal/yr: $1.02/kgal",Costs include capital and O&M costs as well as closure and post-closure costs as appropriate.  Costs include annual dredging.  Annualized cost based on a 20 year operating life assuming a 7% interest rate. ,
F. Other Land Treatment / Storage / Containment,2. Surface Impoundment,2.3 Hazardous (Subtitle C) Treatment,"Memo:  Hazardous Waste Identification Rule for Process Wastes: Waste Management Cost Data (Sept. 27, 1996)","Without aeration: 800,000 kgal/yr: $0.58/kgal",1995,1.138,"Without aeration: 800,000 kgal/yr: $0.66/kgal",Costs include capital and O&M costs as well as closure and post-closure costs as appropriate.  Costs include annual dredging.  Annualized cost based on a 20 year operating life assuming a 7% interest rate. ,
F. Other Land Treatment / Storage / Containment,2. Surface Impoundment,2.3 Hazardous (Subtitle C) Treatment,"Memo:  Hazardous Waste Identification Rule for Process Wastes: Waste Management Cost Data (Sept. 27, 1996)","Without aeration: 1,600,000 kgal/yr: $0.49/kgal",1995,1.138,"Without aeration: 1,600,000 kgal/yr: $0.56/kgal",Costs include capital and O&M costs as well as closure and post-closure costs as appropriate.  Costs include annual dredging.  Annualized cost based on a 20 year operating life assuming a 7% interest rate. ,
F. Other Land Treatment / Storage / Containment,2. Surface Impoundment,2.3 Hazardous (Subtitle C) Treatment,"Memo:  Hazardous Waste Identification Rule for Process Wastes: Waste Management Cost Data (Sept. 27, 1996)","Without aeration: 2,400,000 kgal/yr: $0.46/kgal",1995,1.138,"Without aeration: 2,400,000 kgal/yr: $0.52/kgal",Costs include capital and O&M costs as well as closure and post-closure costs as appropriate.  Costs include annual dredging.  Annualized cost based on a 20 year operating life assuming a 7% interest rate. ,
F. Other Land Treatment / Storage / Containment,2. Surface Impoundment,2.3 Hazardous (Subtitle C) Treatment,"Memo:  Hazardous Waste Identification Rule for Process Wastes: Waste Management Cost Data (Sept. 27, 1996)","With aeration: 32,000 kgal/yr: $5.66/kgal",1995,1.138,"With aeration: 32,000 kgal/yr: $6.44/kgal",Costs include capital and O&M costs as well as closure and post-closure costs as appropriate.  Costs include annual dredging.  Annualized cost based on a 20 year operating life assuming a 7% interest rate. ,
F. Other Land Treatment / Storage / Containment,2. Surface Impoundment,2.3 Hazardous (Subtitle C) Treatment,"Memo:  Hazardous Waste Identification Rule for Process Wastes: Waste Management Cost Data (Sept. 27, 1996)","With aeration: 160,000 kgal/yr: $1.49/kgal",1995,1.138,"With aeration: 160,000 kgal/yr: $1.70/kgal",Costs include capital and O&M costs as well as closure and post-closure costs as appropriate.  Costs include annual dredging.  Annualized cost based on a 20 year operating life assuming a 7% interest rate. ,
F. Other Land Treatment / Storage / Containment,2. Surface Impoundment,2.3 Hazardous (Subtitle C) Treatment,"Memo:  Hazardous Waste Identification Rule for Process Wastes: Waste Management Cost Data (Sept. 27, 1996)","With aeration: 320,000 kgal/yr: $0.97/kgal",1995,1.138,"With aeration: 320,000 kgal/yr: $1.10/kgal",Costs include capital and O&M costs as well as closure and post-closure costs as appropriate.  Costs include annual dredging.  Annualized cost based on a 20 year operating life assuming a 7% interest rate. ,
F. Other Land Treatment / Storage / Containment,2. Surface Impoundment,2.3 Hazardous (Subtitle C) Treatment,"Memo:  Hazardous Waste Identification Rule for Process Wastes: Waste Management Cost Data (Sept. 27, 1996)","With aeration: 800,000 kgal/yr: $0.62/kgal",1995,1.138,"With aeration: 800,000 kgal/yr: $0.71/kgal",Costs include capital and O&M costs as well as closure and post-closure costs as appropriate.  Costs include annual dredging.  Annualized cost based on a 20 year operating life assuming a 7% interest rate. ,
F. Other Land Treatment / Storage / Containment,2. Surface Impoundment,2.3 Hazardous (Subtitle C) Treatment,"Memo:  Hazardous Waste Identification Rule for Process Wastes: Waste Management Cost Data (Sept. 27, 1996)","With aeration: 1,600,000 kgal/yr: $0.53/kgal",1995,1.138,"With aeration: 1,600,000 kgal/yr: $0.60/kgal",Costs include capital and O&M costs as well as closure and post-closure costs as appropriate.  Costs include annual dredging.  Annualized cost based on a 20 year operating life assuming a 7% interest rate. ,
F. Other Land Treatment / Storage / Containment,2. Surface Impoundment,2.3 Hazardous (Subtitle C) Treatment,"Memo:  Hazardous Waste Identification Rule for Process Wastes: Waste Management Cost Data (Sept. 27, 1996)","With aeration: 2,400,000 kgal/yr: $0.50/kgal ",1995,1.138,"With aeration: 2,400,000 kgal/yr: $0.57/kgal ",Costs include capital and O&M costs as well as closure and post-closure costs as appropriate.  Costs include annual dredging.  Annualized cost based on a 20 year operating life assuming a 7% interest rate. ,
F. Other Land Treatment / Storage / Containment,3. Waste Pile,3.1 Non-Hazardous Waste (Subtitle D),"Memo:  Hazardous Waste Identification Rule for Process Wastes: Waste Management Cost Data (Sept. 27, 1996)","Unlined: 1,000 tons/yr: $30.35/ton",1995,1.138,"Unlined: 1,000 tons/yr: $34.54/ton","Note:  Annualized cost based on a 20 year operating life assuming a 7% interest rate.  See reference if you wish to add costs for monitoring, site access controls, run-on/run-off controls, final cover, or dust suppression.",
F. Other Land Treatment / Storage / Containment,3. Waste Pile,3.1 Non-Hazardous Waste (Subtitle D),"Memo:  Hazardous Waste Identification Rule for Process Wastes: Waste Management Cost Data (Sept. 27, 1996)","Unlined: 5,000 tons/yr: $9.16/ton",1995,1.138,"Unlined: 5,000 tons/yr: $10.42/ton","Note:  Annualized cost based on a 20 year operating life assuming a 7% interest rate.  See reference if you wish to add costs for monitoring, site access controls, run-on/run-off controls, final cover, or dust suppression.",
F. Other Land Treatment / Storage / Containment,3. Waste Pile,3.1 Non-Hazardous Waste (Subtitle D),"Memo:  Hazardous Waste Identification Rule for Process Wastes: Waste Management Cost Data (Sept. 27, 1996)","Unlined: 10,000 tons/yr: $5.47/ton",1995,1.138,"Unlined: 10,000 tons/yr: $6.22/ton","Note:  Annualized cost based on a 20 year operating life assuming a 7% interest rate.  See reference if you wish to add costs for monitoring, site access controls, run-on/run-off controls, final cover, or dust suppression.",
F. Other Land Treatment / Storage / Containment,3. Waste Pile,3.1 Non-Hazardous Waste (Subtitle D),"Memo:  Hazardous Waste Identification Rule for Process Wastes: Waste Management Cost Data (Sept. 27, 1996)","Unlined: 25,000 tons/yr: $2.77/ton",1995,1.138,"Unlined: 25,000 tons/yr: $3.15/ton","Note:  Annualized cost based on a 20 year operating life assuming a 7% interest rate.  See reference if you wish to add costs for monitoring, site access controls, run-on/run-off controls, final cover, or dust suppression.",
F. Other Land Treatment / Storage / Containment,3. Waste Pile,3.1 Non-Hazardous Waste (Subtitle D),"Memo:  Hazardous Waste Identification Rule for Process Wastes: Waste Management Cost Data (Sept. 27, 1996)","Unlined: 50,000 tons/yr: $1.65/ton ",1995,1.138,"Unlined: 50,000 tons/yr: $1.88/ton ","Note:  Annualized cost based on a 20 year operating life assuming a 7% interest rate.  See reference if you wish to add costs for monitoring, site access controls, run-on/run-off controls, final cover, or dust suppression.",
F. Other Land Treatment / Storage / Containment,3. Waste Pile,3.2 Hazardous Waste (Subtitle C),"Memo: Costs for Subtitle D and C Management Units (Sept. 29, 1995)",$15 to $82/ton,1992,1.238,$19 to $102/ton,"Costs include site preparation, run-on and run-off controls, groundwater monitoring wells, a containment system, and other RCRA related costs and fees.  Annualized cost based on a 20 year operating life assuming a 7% interest rate.",
F. Other Land Treatment / Storage / Containment,3. Waste Pile,3.2 Hazardous Waste (Subtitle C),"Memo:  Hazardous Waste Identification Rule for Process Wastes: Waste Management Cost Data (Sept. 27, 1996)","1,000 tons/yr: $221.45/ton",1995,1.138,"1,000 tons/yr: $252.01/ton","Note:  Annualized cost based on a 20 year operating life assuming a 7% interest rate.  Includes RCRA pad, containment, and closure requirements.",
F. Other Land Treatment / Storage / Containment,3. Waste Pile,3.2 Hazardous Waste (Subtitle C),"Memo:  Hazardous Waste Identification Rule for Process Wastes: Waste Management Cost Data (Sept. 27, 1996)","5,000 tons/yr: $93.91/ton",1995,1.138,"5,000 tons/yr: $106.87/ton","Note:  Annualized cost based on a 20 year operating life assuming a 7% interest rate.  Includes RCRA pad, containment, and closure requirements.",
F. Other Land Treatment / Storage / Containment,3. Waste Pile,3.2 Hazardous Waste (Subtitle C),"Memo:  Hazardous Waste Identification Rule for Process Wastes: Waste Management Cost Data (Sept. 27, 1996)","10,000 tons/yr: $64.91/ton",1995,1.138,"10,000 tons/yr: $73.87/ton","Note:  Annualized cost based on a 20 year operating life assuming a 7% interest rate.  Includes RCRA pad, containment, and closure requirements.",
F. Other Land Treatment / Storage / Containment,3. Waste Pile,3.2 Hazardous Waste (Subtitle C),"Memo:  Hazardous Waste Identification Rule for Process Wastes: Waste Management Cost Data (Sept. 27, 1996)","25,000 tons/yr: $39.83/ton",1995,1.138,"25,000 tons/yr: $45.33/ton","Note:  Annualized cost based on a 20 year operating life assuming a 7% interest rate.  Includes RCRA pad, containment, and closure requirements.",
F. Other Land Treatment / Storage / Containment,3. Waste Pile,3.2 Hazardous Waste (Subtitle C),"Memo:  Hazardous Waste Identification Rule for Process Wastes: Waste Management Cost Data (Sept. 27, 1996)","50,000 tons/yr: $27.53/ton ",1995,1.138,"50,000 tons/yr: $27.53/ton ","Note:  Annualized cost based on a 20 year operating life assuming a 7% interest rate.  Includes RCRA pad, containment, and closure requirements.",
F. Other Land Treatment / Storage / Containment,4. Aboveground Storage Tank (AST),4.1 7-Day Storage Tank,"Regulatory Impact Analyses: Phase IV Land Disposal Restrictions to Newly Identified Mineral Processing Wastes (April 15, 1997)","Annual Cost = -4*10-8Q2 +0.1175Q+3,679.5",1995,1.138,"Annual Cost = -4.6*10-8Q2 +0.1337Q+4,187.3","Q = Quantity of material presented for treatment in metric tons per year.  One metric ton equals 1.1023 short tons (english).
Annualized cost based on a 20 year operating life assuming a 7% interest rate. ",
F. Other Land Treatment / Storage / Containment,4. Aboveground Storage Tank (AST),4.2 Concrete Pad Secondary Containment,"Evaluate the Economics of Secondary Containment, Chemical Engineering Progress (Sept. 1993)",Capital Cost = 30.054x0.6232,1993,1.216,Capital Cost = 36.55x0.6232,x = Capacity of tank in gallons.,
F. Other Land Treatment / Storage / Containment,4. Aboveground Storage Tank (AST),4.3. Earth Diking with Synthetic Lining Secondary Containment,"Evaluate the Economics of Secondary Containment, Chemical Engineering Progress (Sept. 1993)",Capital Cost = 0.8287x0.6588,1993,1.216,Capital Cost = 1.01x0.6588,x = Capacity of tank in gallons.,
F. Other Land Treatment / Storage / Containment,4. Aboveground Storage Tank (AST),4.4 Silo,Cost Functions for Alternative CKD Control Technologies Draft July 1996 Report says do not cite or quote,"Capital Cost =0.0811x + 3,959.7",1996,1.105,"Capital Cost =0.0896x + 4,375.5",x = tons/yr,
F. Other Land Treatment / Storage / Containment,4. Aboveground Storage Tank (AST),4.5 Chute for Silo/Hopper,Cost Functions for Alternative CKD Control Technologies Draft July 1996 Report says do not cite or quote,Capital Cost =0.3648x + 85.381,1996,1.105,Capital Cost =0.4031x + 94.346,x = tons/yr of cement kiln dust (CKD),
F. Other Land Treatment / Storage / Containment,5. Underground Storage Tank (UST),5.1 Single-Wall UST,Racer 1999,"Capital Cost = 2.5*(gallon capacity) + 23,990",1999,1.025,"Capital Cost = 2.6*(gallon capacity) + 24,590",n/a,
F. Other Land Treatment / Storage / Containment,5. Underground Storage Tank (UST),5.1 Single-Wall UST,Racer 1999,"O&M Cost: Gallon Capacity <= 12,000  Cost $342/year",1999,1.025,"O&M Cost: Gallon Capacity <= 12,000 Cost $351/year ",n/a,
F. Other Land Treatment / Storage / Containment,5. Underground Storage Tank (UST),5.1 Single-Wall UST,Racer 1999,"O&M Cost: Gallon Capacity 12,001 to 29,999 Cost $564/year",1999,1.025,"O&M Cost: Gallon Capacity 12,001 to 29,999 Cost $578/year",n/a,
F. Other Land Treatment / Storage / Containment,5. Underground Storage Tank (UST),5.1 Single-Wall UST,Racer 1999,"O&M Cost: Gallon Capacity >= 30,000 Cost $666/year",1999,1.025,"O&M Cost: Gallon Capacity >= 30,000 Cost $683/year",n/a,
F. Other Land Treatment / Storage / Containment,5. Underground Storage Tank (UST),5.2. Double-Wall UST,Racer 1999,"Capital Cost = 2.9*(gallon capacity) + 27,161",1999,1.025,"Capital Cost = 3.0*(gallon capacity) + 27,840",n/a,
F. Other Land Treatment / Storage / Containment,5. Underground Storage Tank (UST),5.2. Double-Wall UST,Racer 1999,"O&M Cost: Gallon Capacity <= 12,000  Cost $342/year",1999,1.025,"O&M Cost: Gallon Capacity <= 12,000 Cost $351/year ",n/a,
F. Other Land Treatment / Storage / Containment,5. Underground Storage Tank (UST),5.2. Double-Wall UST,Racer 1999,"O&M Cost: Gallon Capacity 12,001 to 29,999 Cost $564/year",1999,1.025,"O&M Cost: Gallon Capacity 12,001 to 29,999 Cost $578/year",n/a,
F. Other Land Treatment / Storage / Containment,5. Underground Storage Tank (UST),5.2. Double-Wall UST,Racer 1999,"O&M Cost: Gallon Capacity >= 30,000 Cost $666/year",1999,1.025,"O&M Cost: Gallon Capacity >= 30,000 Cost $683/year",n/a,
F. Other Land Treatment / Storage / Containment,5. Underground Storage Tank (UST),5.3. Concrete Vault Secondary Containment,"Evaluate the Economics of Secondary Containment, Chemical Engineering Progress (Sept. 1993)",Capital Cost = 269.74x0.4108,1993,1.216,Capital Cost = 328.00x0.4108,x = Capacity of tank in gallons.  ,
F. Other Land Treatment / Storage / Containment,5. Underground Storage Tank (UST),5.4. Concrete Vault with Polymer or Resin Based Sealer Secondary Containment,"Evaluate the Economics of Secondary Containment, Chemical Engineering Progress (Sept. 1993)",Capital Cost = 321.93x0.4593,1993,1.216,Capital Cost = 391.47x0.4593,x = Capacity of tank in gallons.  ,
F. Other Land Treatment / Storage / Containment,5. Underground Storage Tank (UST),5.5. Steel Box Secondary Containment,"Evaluate the Economics of Secondary Containment, Chemical Engineering Progress (Sept. 1993)",Capital Cost = 96.081x0.4654,1993,1.216,Capital Cost = 116.835x0.4654,x = Capacity of tank in gallons.  ,
F. Other Land Treatment / Storage / Containment,5. Underground Storage Tank (UST),5.6. Synthetic Liner Secondary Containment,"Evaluate the Economics of Secondary Containment, Chemical Engineering Progress (Sept. 1993)",Capital Cost = 12.066x0.5942,1993,1.216,Capital Cost = 14.672x0.5942,x = Capacity of tank in gallons.  ,
F. Other Land Treatment / Storage / Containment,6. Containers,6.1 55-Gallon Drum,Racer 1999,$103 per 55-gallon drum,1999,1.025,$106 per 55-gallon drum,n/a,
F. Other Land Treatment / Storage / Containment,6. Containers,6.2 40-cy Roll-Off Container,Racer 1999,"Purchase: $6,472 per 20 cy roll-off bin.",1999,1.025,"Purchase: $6,634 per 20 cy roll-off bin.",n/a,
F. Other Land Treatment / Storage / Containment,6. Containers,6.2 40-cy Roll-Off Container,Racer 1999,Rental:$2 per day + $435 delivery charge,1999,1.025,Rental: $2 per day + $446 delivery charge,n/a,
F. Other Land Treatment / Storage / Containment,6. Containers,6.3. Storage and Handling Building,Racer 1999,"Capital Cost = 0.06*(area in square feet)2 + 46.2*(area in square feet) + 4,995",1999,1.025,"Capital Cost = 0.06*(area in square feet)2 + 47.36*(area in square feet) + 5,120",n/a,
Cost Item Category,Cost Item Sub Category (where applicable),Type of Cost Item,Sources of Cost / Pricing Data,Format of Cost Data,Year of  Data,Update Factor,Updated Cost (2000$),Notes/Assumptions,
G. Aqueous Waste Treatment,n/a,1. Equalization Tank,"RACER 1999.  In addition, the third edition of Wastewater Engineering; Treatment, Disposal, and Reuse provided general information on the standard design of equalization tanks.","Tank: Cost =  -2x10-7 Q2 + 0.77Q + 51,953",1999,1.025,"Tank: Cost =  -2x10-7 Q2 + 0.79Q + 53,252",Q = tank capacity in gallons,
G. Aqueous Waste Treatment,n/a,1. Equalization Tank,"RACER 1999.  In addition, the third edition of Wastewater Engineering; Treatment, Disposal, and Reuse provided general information on the standard design of equalization tanks.","Tank With Mixing: Cost =  -2x10-7 Q2 +0.82Q + 52,393",1999,1.025,"Tank With Mixing: Cost =  -2x10-7 Q2 +0.84Q + 53,703",Q = tank capacity in gallons,
G. Aqueous Waste Treatment,n/a,1. Equalization Tank,"RACER 1999.  In addition, the third edition of Wastewater Engineering; Treatment, Disposal, and Reuse provided general information on the standard design of equalization tanks.",Mixing: Cost = -6x10-9 Q2 + 0.06Q + 440,1999,1.025,Mixing: Cost = -6x10-9 Q2 + 0.06Q + 451,Q = tank capacity in gallons,
G. Aqueous Waste Treatment,n/a,2. Oil/Water Separation,Racer 1999,"Capital: Cost = 110Q + 19,880",1999,1.025,"Capital: Cost = 113Q + 20,377",Q = Flow rate in gpm,
G. Aqueous Waste Treatment,n/a,2. Oil/Water Separation,Racer 1999,"O&M: Cost = 75Q - 0.06Q2 + 11,767",1999,1.025,"O&M: Cost = 77Q - 0.06Q2 + 12,061",Q = Flow rate in gpm,
G. Aqueous Waste Treatment,n/a,3. Gravity Separation,"Regulatory Impact Assessment for Proposed Hazardous Waste Combustion MACT Standards Draft, November 13, 1995",Fixed O&M Costs: Soils/Sludges ($/ton) $27-$207,1995*,1.138,Fixed O&M Costs: Soils/Sludges ($/ton) $31-$236,"Estimated Capital Equipment Life - ~15 years.
* Presumed year of cost data.  The source of cost data did not directly indicate the year the cost data is based upon.  In these cases, a year of data is assumed from the date of the source document or references within the source document.",
G. Aqueous Waste Treatment,n/a,4. Neutralization,Racer 1999,"Capital: Cost = 1,034Q + 35,315",1999,1.025,"Capital: Cost = 1,060Q + 36,138",Q = flow rate in gpm,
G. Aqueous Waste Treatment,n/a,4. Neutralization,Racer 1999,"Annual O&M for Acidic Waste Stream: Cost = 1,570Q - 2.34Q2 +10,437",1999,1.025,"Annual O&M for Acidic Waste Stream: Cost = 1,609Q - 2.40Q2 +10,698",Q = flow rate in gpm,
G. Aqueous Waste Treatment,n/a,4. Neutralization,Racer 1999,"Annual O&M for Basic Waste Stream: Cost = 855Q - 2Q2 +10,210",1999,1.025,"Annual O&M for Basic Waste Stream: Cost = 876Q - 2Q2 +10,465",Q = flow rate in gpm,
G. Aqueous Waste Treatment,n/a,5. Precipitation,Racer 1999,"Capital: Cost = 1,805Q + 135,522",1999,1.025,"Capital: Cost = 1,850Q + 138,910",Q = flow rate in gpm,
G. Aqueous Waste Treatment,n/a,5. Precipitation,Racer 1999,"Annual O&M: Cost = 1,586Q + 20,212",1999,1.025,"Annual O&M: Cost = 1,626Q + 20,717",Q = flow rate in gpm,
G. Aqueous Waste Treatment,n/a,6. Air Stripping,RACER 1999 and Handbook of Hazardous Waste Treatment and Disposal 1989. ,See appendix for cost table.  Look up cost based on flow rate.,1999,1.025,See appendix for cost table.  Look up cost based on flow rate.,n/a,
G. Aqueous Waste Treatment,n/a,7. Distillation,"Regulatory Impact Assessment for Proposed Hazardous Waste Combustion MACT Standards Draft, November 13, 1995","Initial Capital Cost: $1,050,000",1995*,1.138,"Initial Capital Cost: $1,194,900","Estimated Capital Equipment Life - ~10 years.
* Presumed year of cost data.  The source of cost data did not directly indicate the year the cost data is based upon.  In these cases, a year of data is assumed from the date of the source document or references within the source document.",
G. Aqueous Waste Treatment,n/a,7. Distillation,"Regulatory Impact Assessment for Proposed Hazardous Waste Combustion MACT Standards Draft, November 13, 1995",Fixed O&M Costs: Soils/Sludges ($/ton) $70 - $380,1995*,1.138,Fixed O&M Costs: Soils/Sludges ($/ton) $80 - $432,"Estimated Capital Equipment Life - ~10 years.
* Presumed year of cost data.  The source of cost data did not directly indicate the year the cost data is based upon.  In these cases, a year of data is assumed from the date of the source document or references within the source document.",
G. Aqueous Waste Treatment,n/a,7. Distillation,"Regulatory Impact Assessment for Proposed Hazardous Waste Combustion MACT Standards Draft, November 13, 1995",Variable O&M Costs: Liquids ($/1000 gal) $0.01,1995*,1.138,Variable O&M Costs: Liquids ($/1000 gal) $0.01,"Estimated Capital Equipment Life - ~10 years.
* Presumed year of cost data.  The source of cost data did not directly indicate the year the cost data is based upon.  In these cases, a year of data is assumed from the date of the source document or references within the source document.",
G. Aqueous Waste Treatment,n/a,8. Ozonation,"Regulatory Impact Assessment for Proposed Hazardous Waste Combustion MACT Standards Draft, November 13, 1995","Initial Capital Cost: $70,000 - $260,000  Source: Alternative Technology Information  Center ",1995*,1.138,"Initial Capital Cost: $79,660 - $295,880 Source: Alternative Technology Information  Center ","Estimated Capital Equipment Life - ~10 years.
* Presumed year of cost data.  The source of cost data did not directly indicate the year the cost data is based upon.  In these cases, a year of data is assumed from the date of the source document or references within the source document.",
G. Aqueous Waste Treatment,n/a,8. Ozonation,"Regulatory Impact Assessment for Proposed Hazardous Waste Combustion MACT Standards Draft, November 13, 1995","$130,000 - $160,000 Source: Pollution Prevention October 1994",1995*,1.138,"$147,940 - $182,080 Source: Pollution Prevention October 1994","Estimated Capital Equipment Life - ~10 years.
* Presumed year of cost data.  The source of cost data did not directly indicate the year the cost data is based upon.  In these cases, a year of data is assumed from the date of the source document or references within the source document.",
G. Aqueous Waste Treatment,n/a,8. Ozonation,"Regulatory Impact Assessment for Proposed Hazardous Waste Combustion MACT Standards Draft, November 13, 1995",Fixed O&M Costs: Soils/Sludges ($/ton) $30-$175,1995*,1.138,Fixed O&M Costs: Soils/Sludges ($/ton) $34-$199,"Estimated Capital Equipment Life - ~10 years.
* Presumed year of cost data.  The source of cost data did not directly indicate the year the cost data is based upon.  In these cases, a year of data is assumed from the date of the source document or references within the source document.",
G. Aqueous Waste Treatment,n/a,8. Ozonation,"Regulatory Impact Assessment for Proposed Hazardous Waste Combustion MACT Standards Draft, November 13, 1995",Liquids ($/1000 gal) $0.25-$17,1995*,1.138,Liquids ($/1000 gal) $0.28-$19,"Estimated Capital Equipment Life - ~10 years.
* Presumed year of cost data.  The source of cost data did not directly indicate the year the cost data is based upon.  In these cases, a year of data is assumed from the date of the source document or references within the source document.",
G. Aqueous Waste Treatment,n/a,8. Ozonation,"Regulatory Impact Assessment for Proposed Hazardous Waste Combustion MACT Standards Draft, November 13, 1995",Liquids (converted to $/ton) $0.06 - $4.08,1995*,1.138,Liquids (converted to $/ton) $0.07 - $4.64,"Estimated Capital Equipment Life - ~10 years.
* Presumed year of cost data.  The source of cost data did not directly indicate the year the cost data is based upon.  In these cases, a year of data is assumed from the date of the source document or references within the source document.",
G. Aqueous Waste Treatment,n/a,9. Granular Activated Carbon,Racer 1999,"Flow Rates < 20 gpm: Capital: $8,651 Annual O&M: $5,041",1999,1.025,"Flow Rates < 20 gpm: Capital: $8,867 Annual O&M: $5,167",Q = flow rate in gpm,
G. Aqueous Waste Treatment,n/a,9. Granular Activated Carbon,Racer 1999,"Flow Rate > 20 and < 200 gpm Capital = 2,018Q + 9,024 Annual O&M = 462Q - 0.799Q2 - 190",1999,1.025,"Flow Rate > 20 and < 200 gpm Capital = 2,068Q + 9,250 Annual O&M = 474Q - 0.819Q2 - 195",Q = flow rate in gpm,
G. Aqueous Waste Treatment,n/a,9. Granular Activated Carbon,Racer 1999,"Flow Rate > 200 gpm Capital = 3,319Q0.7763  Annual O&M = 1,598Q + 25,489",1999,1.025,"Flow Rate > 200 gpm Capital = 3,402Q0.7763  Annual O&M = 1,638Q + 26,126",Q = flow rate in gpm,
G. Aqueous Waste Treatment,n/a,10. Biological Treatment,Racer 1999,"Capital (50 ppm COD and 5 to 100 gpm) = $61,625 (gpm)0.4269",1999,1.025,"Capital (50 ppm COD and 5 to 100 gpm) = $63,166 (gpm)0.4269",n/a,
G. Aqueous Waste Treatment,n/a,10. Biological Treatment,Racer 1999,"Capital (500 ppm COD and 5 to 100 gpm) = $46,312 (gpm)0.5170",1999,1.025,"Capital (500 ppm COD and 5 to 100 gpm) = $47,470 (gpm)0.5170",n/a,
G. Aqueous Waste Treatment,n/a,10. Biological Treatment,Racer 1999,"Capital (1,000 ppm COD and 5 to 50 gpm) = $61,294 (gpm)0.5084",1999,1.025,"Capital (1,000 ppm COD and 5 to 50 gpm) = $62,826 (gpm)0.5084",n/a,
G. Aqueous Waste Treatment,n/a,10. Biological Treatment,Racer 1999,"Annual O&M (50 to 1,000 ppm COD and 5 to 100 gpm) = $5,389 (gpm)0.7702",1999,1.025,"Annual O&M (50 to 1,000 ppm COD and 5 to 100 gpm) = $5,524 (gpm)0.7702",n/a,
Cost Item Category,Cost Item Sub Category (where applicable),Type of Cost Item,Sources of Cost / Pricing Data,Format of Cost Data,Year of  Data,Update Factor,Updated Cost (2000$),Notes/Assumptions,
H. Recycling,1. Metals Recycling,"1.1 HTMR/Smelting (Copper, Nickel, Zinc, Lead, Precious Metals)","U.S. EPA, Regulatory Impact Analysis of the Final Rule for a 180-Day Accumulation Time for F006 Wastewater Treatment Sludges, prepared by DPRA Incorporated, (November 1999).",$0.10/lb  to $0.20/lb,1999,1.025,$0.10/lb  to $0.21/lb,n/a,
H. Recycling,1. Metals Recycling,"1.1 HTMR/Smelting (Copper, Nickel, Zinc, Lead, Precious Metals)","U.S. EPA, Regulatory Impact Analysis of the Final Rule for a 180-Day Accumulation Time for F006 Wastewater Treatment Sludges, prepared by DPRA Incorporated, (November 1999).",Fluorescent lamp retorting: Transportation and Tipping Fee = $1.31/lamp,1997,1.076,Fluorescent lamp retorting: Transportation and Tipping Fee = $1.41/lamp,n/a,
H. Recycling,1. Metals Recycling,1.2 Mercury Retorts,"U.S. EPA, Regulatory Impact Analysis of the Final Rule for a 180-Day Accumulation Time for F006 Wastewater Treatment Sludges, prepared by DPRA Incorporated, (November 1999).",Fluorescent lamp retorting: Lamp Crushing = $78.67/ton,1997,1.076,Fluorescent lamp retorting: Lamp Crushing = $84.65/ton,n/a,
H. Recycling,1. Metals Recycling,1.2 Mercury Retorts,"U.S. EPA, Regulatory Impact Analysis of the Final Rule for a 180-Day Accumulation Time for F006 Wastewater Treatment Sludges, prepared by DPRA Incorporated, (November 1999).",Fluorescent lamp retorting: Drum Cost = $44.96/drum,1997,1.076,Fluorescent lamp retorting: Drum Cost = $48.38/drum,n/a,
H. Recycling,1. Metals Recycling,1.2 Mercury Retorts,HWIR 1995 Draft RIA.,"HWIR retorting costs: <= 4,700 tons:  $856/ton",1995,1.138,"HWIR retorting costs: <= 4,700 tons:  $974/ton",n/a,
H. Recycling,1. Metals Recycling,1.2 Mercury Retorts,HWIR 1995 Draft RIA.,"HWIR retorting costs: > 4,700 and <= 47,000 tons: $446/ton",1995,1.138,"HWIR retorting costs: > 4,700 and <= 47,000 tons: $508/ton",n/a,
H. Recycling,1. Metals Recycling,1.2 Mercury Retorts,HWIR 1995 Draft RIA.,"HWIR retorting costs: >47,000 tons:  $194/ton",1995,1.138,"HWIR retorting costs: >47,000 tons:  $221/ton",n/a,
H. Recycling,2. Fuel Blending,2.1 Fuel Blending,Cost and Economic Impact Analysis of Listing Hazardous Wastes from the Organic Dye and Pigment Industries (Nov. 1994),Subtitle D Fuel Blending = $99.17/Mton,1994,1.175,Subtitle D Fuel Blending = $116.52/Mton,n/a,
H. Recycling,3. Other Recycling/Recovery,3.1 Solvent Extraction,Racer 1999,"Soil: Capital (5,000 to 13,300 cy/yr) = $635,000",1999,1.025,"Soil: Capital (5,000 to 13,300 cy/yr) = $650,875","To convert from gallons to cubic yards, divide by 202 (e.g., 2,700,000 gal/yr  13,300 cy).",
H. Recycling,3. Other Recycling/Recovery,3.1 Solvent Extraction,Racer 1999,"Soil: Capital (> 13,300 cy/yr) = $1,227,000",1999,1.025,"Soil: Capital (> 13,300 cy/yr) = $1,257,675","To convert from gallons to cubic yards, divide by 202 (e.g., 2,700,000 gal/yr  13,300 cy).",
H. Recycling,3. Other Recycling/Recovery,3.1 Solvent Extraction,Racer 1999,"Soil: O&M = 20,724 (cy/yr)0.5710",1999,1.025,"Soil: O&M = 21,242 (cy/yr)0.5710","To convert from gallons to cubic yards, divide by 202 (e.g., 2,700,000 gal/yr  13,300 cy).",
H. Recycling,3. Other Recycling/Recovery,3.1 Solvent Extraction,Racer 1999,"Soil: Closure = 1,212.8 (cy/yr)0.4854",1999,1.025,"Soil: Closure = 1,243.1 (cy/yr)0.4854","To convert from gallons to cubic yards, divide by 202 (e.g., 2,700,000 gal/yr  13,300 cy).",
H. Recycling,3. Other Recycling/Recovery,3.1 Solvent Extraction,Racer 1999,"Sludge: Capital (5,000 to 13,300 cy/yr) = $543,000",1999,1.025,"Sludge: Capital (5,000 to 13,300 cy/yr) = $556,575","To convert from gallons to cubic yards, divide by 202 (e.g., 2,700,000 gal/yr  13,300 cy).",
H. Recycling,3. Other Recycling/Recovery,3.1 Solvent Extraction,Racer 1999,"Sludge: Capital (> 13,300 cy/yr) = $1,065,000",1999,1.025,"Sludge: Capital (> 13,300 cy/yr) = $1,091,625","To convert from gallons to cubic yards, divide by 202 (e.g., 2,700,000 gal/yr  13,300 cy).",
H. Recycling,3. Other Recycling/Recovery,3.1 Solvent Extraction,Racer 1999,"Sludge: O&M = 20,887 (cy/yr)0.5698",1999,1.025,"Sludge: O&M = 21,409 (cy/yr)0.5698","To convert from gallons to cubic yards, divide by 202 (e.g., 2,700,000 gal/yr  13,300 cy).",
H. Recycling,3. Other Recycling/Recovery,3.1 Solvent Extraction,Racer 1999,"Sludge: Closure = 1,212.8 (cy/yr)0.4854",1999,1.025,"Sludge: Closure = 1,243.1 (cy/yr)0.4854","To convert from gallons to cubic yards, divide by 202 (e.g., 2,700,000 gal/yr  13,300 cy).",
H. Recycling,3. Other Recycling/Recovery,3.1 Solvent Extraction,Racer 1999,"Liquid: Capital (1,000,000 to 2,700,000 gal/yr) = $543,000",1999,1.025,"Liquid: Capital (1,000,000 to 2,700,000 gal/yr) = $556,575","To convert from gallons to cubic yards, divide by 202 (e.g., 2,700,000 gal/yr  13,300 cy).",
H. Recycling,3. Other Recycling/Recovery,3.1 Solvent Extraction,Racer 1999,"Liquid: Capital (> 2,700,000 gal/yr) = $1,065,000",1999,1.025,"Liquid: Capital (> 2,700,000 gal/yr) = $1,091,625","To convert from gallons to cubic yards, divide by 202 (e.g., 2,700,000 gal/yr  13,300 cy).",
H. Recycling,3. Other Recycling/Recovery,3.1 Solvent Extraction,Racer 1999,"Liquid: O&M = 1,119.7 (gal/yr)0.5638",1999,1.025,"Liquid: O&M = 1,147.7 (gal/yr)0.5638","To convert from gallons to cubic yards, divide by 202 (e.g., 2,700,000 gal/yr  13,300 cy).",
H. Recycling,3. Other Recycling/Recovery,3.1 Solvent Extraction,Racer 1999,Liquid: Closure = 103.53 (gal/yr)0.4783,1999,1.025,Liquid: Closure = 106.12 (gal/yr)0.4783,"To convert from gallons to cubic yards, divide by 202 (e.g., 2,700,000 gal/yr  13,300 cy).",
H. Recycling,3. Other Recycling/Recovery,3.2. Catalyst Reclamation/Regeneration,Cost and Economic Impact Analysis of Listing Hazardous Wastes from the Petroleum Refining Industry (Sept. 1995),$725/metric ton,1992,1.238,$898/metric ton,n/a,
H. Recycling,3. Other Recycling/Recovery,"3.3. Use as an Ingredient in Products (e.g., Asphalt, Brick, and Cement) Placed on Land",Cost and Economic Impact Analysis of Listing Hazardous Wastes from the Petroleum Refining Industry (Sept. 1995) ,$50/Mton,1992,1.238,$62/Mton,n/a,
Cost Item Category,Cost Item Sub Category (where applicable),Type of Cost Item,Sources of Cost / Pricing Data,Format of Cost Data,Year of  Data,Update Factor,Updated Cost (2000$),Notes/Assumptions,
I. Transportation,n/a,1. Dump Truck Hazardous Waste Transportation,"Environmental Cost Handling Options and Solutions (ECHOS), Environmental Remediation Cost Data-Unit Price, 5th Annual Edition, published by R.S. Means, 1999, Assembly #33 19 0209 through 0217.",$650.00 minimum transport charge,1999,1.025,$666.25 minimum transport charge,n/a,
I. Transportation,n/a,1. Dump Truck Hazardous Waste Transportation,"Environmental Cost Handling Options and Solutions (ECHOS), Environmental Remediation Cost Data-Unit Price, 5th Annual Edition, published by R.S. Means, 1999, Assembly #33 19 0209 through 0217.","$2.32/mi., 200-299 mi.",1999,1.025,"$2.38/mi., 200-299 mi.",n/a,
I. Transportation,n/a,1. Dump Truck Hazardous Waste Transportation,"Environmental Cost Handling Options and Solutions (ECHOS), Environmental Remediation Cost Data-Unit Price, 5th Annual Edition, published by R.S. Means, 1999, Assembly #33 19 0209 through 0217.","$1.97/mi., 300-399 mi.",1999,1.025,"$2.02/mi., 300-399 mi.",n/a,
I. Transportation,n/a,1. Dump Truck Hazardous Waste Transportation,"Environmental Cost Handling Options and Solutions (ECHOS), Environmental Remediation Cost Data-Unit Price, 5th Annual Edition, published by R.S. Means, 1999, Assembly #33 19 0209 through 0217.","$1.84/mi., 400-499 mi.",1999,1.025,"$1.88/mi., 400-499 mi.",n/a,
I. Transportation,n/a,1. Dump Truck Hazardous Waste Transportation,"Environmental Cost Handling Options and Solutions (ECHOS), Environmental Remediation Cost Data-Unit Price, 5th Annual Edition, published by R.S. Means, 1999, Assembly #33 19 0209 through 0217.","$1.76/mi., 500-599 mi.",1999,1.025,"$1.80/mi., 500-599 mi.",n/a,
I. Transportation,n/a,1. Dump Truck Hazardous Waste Transportation,"Environmental Cost Handling Options and Solutions (ECHOS), Environmental Remediation Cost Data-Unit Price, 5th Annual Edition, published by R.S. Means, 1999, Assembly #33 19 0209 through 0217.","$1.74/mi., 600-699 mi.",1999,1.025,"$1.78/mi., 600-699 mi.",n/a,
I. Transportation,n/a,1. Dump Truck Hazardous Waste Transportation,"Environmental Cost Handling Options and Solutions (ECHOS), Environmental Remediation Cost Data-Unit Price, 5th Annual Edition, published by R.S. Means, 1999, Assembly #33 19 0209 through 0217.","$1.70/mi., 700-799 mi.",1999,1.025,"$1.74/mi., 700-799 mi.",n/a,
I. Transportation,n/a,1. Dump Truck Hazardous Waste Transportation,"Environmental Cost Handling Options and Solutions (ECHOS), Environmental Remediation Cost Data-Unit Price, 5th Annual Edition, published by R.S. Means, 1999, Assembly #33 19 0209 through 0217.","$1.68/mi., 800-899 mi.",1999,1.025,"$1.72/mi., 800-899 mi.",n/a,
I. Transportation,n/a,1. Dump Truck Hazardous Waste Transportation,"Environmental Cost Handling Options and Solutions (ECHOS), Environmental Remediation Cost Data-Unit Price, 5th Annual Edition, published by R.S. Means, 1999, Assembly #33 19 0209 through 0217.","$1.67/mi., 900-999 mi.",1999,1.025,"$1.71/mi., 900-999 mi.",n/a,
I. Transportation,n/a,1. Dump Truck Hazardous Waste Transportation,"Environmental Cost Handling Options and Solutions (ECHOS), Environmental Remediation Cost Data-Unit Price, 5th Annual Edition, published by R.S. Means, 1999, Assembly #33 19 0209 through 0217.","$1.65/mi., 1,000+ mi.",1999,1.025,"$1.69/mi., 1,000+ mi.",n/a,
I. Transportation,n/a,2. Van Trailer Hazardous Waste Transportation,"Environmental Cost Handling Options and Solutions (ECHOS), Environmental Remediation Cost Data-Unit Price, 5th Annual Edition, published by R.S. Means, 1999, Assembly #33 19 0229 through 0240.",$683.33 minimum transport charge,1999,1.025,$700.41 minimum transport charge,n/a,
I. Transportation,n/a,2. Van Trailer Hazardous Waste Transportation,"Environmental Cost Handling Options and Solutions (ECHOS), Environmental Remediation Cost Data-Unit Price, 5th Annual Edition, published by R.S. Means, 1999, Assembly #33 19 0229 through 0240.","$2.41/mi., 200-299 mi.",1999,1.025,"$2.47/mi., 200-299 mi.",n/a,
I. Transportation,n/a,2. Van Trailer Hazardous Waste Transportation,"Environmental Cost Handling Options and Solutions (ECHOS), Environmental Remediation Cost Data-Unit Price, 5th Annual Edition, published by R.S. Means, 1999, Assembly #33 19 0229 through 0240.","$2.31/mi., 300-399 mi.",1999,1.025,"$2.37/mi., 300-399 mi.",n/a,
I. Transportation,n/a,2. Van Trailer Hazardous Waste Transportation,"Environmental Cost Handling Options and Solutions (ECHOS), Environmental Remediation Cost Data-Unit Price, 5th Annual Edition, published by R.S. Means, 1999, Assembly #33 19 0229 through 0240.","$2.11/mi., 400-499 mi.",1999,1.025,"$2.16/mi., 400-499 mi.",n/a,
I. Transportation,n/a,2. Van Trailer Hazardous Waste Transportation,"Environmental Cost Handling Options and Solutions (ECHOS), Environmental Remediation Cost Data-Unit Price, 5th Annual Edition, published by R.S. Means, 1999, Assembly #33 19 0229 through 0240.","$2.01/mi., 500-599 mi.",1999,1.025,"$2.06/mi., 500-599 mi.",n/a,
I. Transportation,n/a,2. Van Trailer Hazardous Waste Transportation,"Environmental Cost Handling Options and Solutions (ECHOS), Environmental Remediation Cost Data-Unit Price, 5th Annual Edition, published by R.S. Means, 1999, Assembly #33 19 0229 through 0240.","$1.98/mi., 600-699 mi.",1999,1.025,"$2.03/mi., 600-699 mi.",n/a,
I. Transportation,n/a,2. Van Trailer Hazardous Waste Transportation,"Environmental Cost Handling Options and Solutions (ECHOS), Environmental Remediation Cost Data-Unit Price, 5th Annual Edition, published by R.S. Means, 1999, Assembly #33 19 0229 through 0240.","$1.91/mi., 700-799 mi.",1999,1.025,"$1.96/mi., 700-799 mi.",n/a,
I. Transportation,n/a,2. Van Trailer Hazardous Waste Transportation,"Environmental Cost Handling Options and Solutions (ECHOS), Environmental Remediation Cost Data-Unit Price, 5th Annual Edition, published by R.S. Means, 1999, Assembly #33 19 0229 through 0240.","$1.89/mi., 800-999 mi.",1999,1.025,"$1.94/mi., 800-999 mi.",n/a,
I. Transportation,n/a,2. Van Trailer Hazardous Waste Transportation,"Environmental Cost Handling Options and Solutions (ECHOS), Environmental Remediation Cost Data-Unit Price, 5th Annual Edition, published by R.S. Means, 1999, Assembly #33 19 0229 through 0240.","$1.87/mi., 1,000+ mi.",1999,1.025,"$1.92/mi., 1,000+ mi.",n/a,
I. Transportation,n/a,3. Tanker Trailer Hazardous Waste Transportation,"Environmental Cost Handling Options and Solutions (ECHOS), Environmental Remediation Cost Data-Unit Price, 5th Annual Edition, published by R.S. Means, 1999, Assembly #33 19 0253 through 0262.",$750.00 minimum transport charge,1999,1.025,$769.00 minimum transport charge,n/a,
I. Transportation,n/a,3. Tanker Trailer Hazardous Waste Transportation,"Environmental Cost Handling Options and Solutions (ECHOS), Environmental Remediation Cost Data-Unit Price, 5th Annual Edition, published by R.S. Means, 1999, Assembly #33 19 0253 through 0262.","$2.48/mi., 200-299 mi.",1999,1.025,"$2.54/mi., 200-299 mi.",n/a,
I. Transportation,n/a,3. Tanker Trailer Hazardous Waste Transportation,"Environmental Cost Handling Options and Solutions (ECHOS), Environmental Remediation Cost Data-Unit Price, 5th Annual Edition, published by R.S. Means, 1999, Assembly #33 19 0253 through 0262.","$2.45/mi., 300-399 mi.",1999,1.025,"$2.51/mi., 300-399 mi.",n/a,
I. Transportation,n/a,3. Tanker Trailer Hazardous Waste Transportation,"Environmental Cost Handling Options and Solutions (ECHOS), Environmental Remediation Cost Data-Unit Price, 5th Annual Edition, published by R.S. Means, 1999, Assembly #33 19 0253 through 0262.","$2.40/mi., 400-499 mi.",1999,1.025,"$2.46/mi., 400-499 mi.",n/a,
I. Transportation,n/a,3. Tanker Trailer Hazardous Waste Transportation,"Environmental Cost Handling Options and Solutions (ECHOS), Environmental Remediation Cost Data-Unit Price, 5th Annual Edition, published by R.S. Means, 1999, Assembly #33 19 0253 through 0262.","$2.35/mi., 500-599 mi.",1999,1.025,"$2.41/mi., 500-599 mi.",n/a,
I. Transportation,n/a,3. Tanker Trailer Hazardous Waste Transportation,"Environmental Cost Handling Options and Solutions (ECHOS), Environmental Remediation Cost Data-Unit Price, 5th Annual Edition, published by R.S. Means, 1999, Assembly #33 19 0253 through 0262.","$2.33/mi., 600-699 mi.",1999,1.025,"$2.39/mi., 600-699 mi.",n/a,
I. Transportation,n/a,3. Tanker Trailer Hazardous Waste Transportation,"Environmental Cost Handling Options and Solutions (ECHOS), Environmental Remediation Cost Data-Unit Price, 5th Annual Edition, published by R.S. Means, 1999, Assembly #33 19 0253 through 0262.","$2.29/mi., 700-799 mi.",1999,1.025,"$2.35/mi., 700-799 mi.",n/a,
I. Transportation,n/a,3. Tanker Trailer Hazardous Waste Transportation,"Environmental Cost Handling Options and Solutions (ECHOS), Environmental Remediation Cost Data-Unit Price, 5th Annual Edition, published by R.S. Means, 1999, Assembly #33 19 0253 through 0262.","$2.27/mi., 800-899 mi.",1999,1.025,"$2.33/mi., 800-899 mi.",n/a,
I. Transportation,n/a,3. Tanker Trailer Hazardous Waste Transportation,"Environmental Cost Handling Options and Solutions (ECHOS), Environmental Remediation Cost Data-Unit Price, 5th Annual Edition, published by R.S. Means, 1999, Assembly #33 19 0253 through 0262.","$2.26/mi., 900-999 mi.",1999,1.025,"$2.32/mi., 900-999 mi.",n/a,
I. Transportation,n/a,3. Tanker Trailer Hazardous Waste Transportation,"Environmental Cost Handling Options and Solutions (ECHOS), Environmental Remediation Cost Data-Unit Price, 5th Annual Edition, published by R.S. Means, 1999, Assembly #33 19 0253 through 0262.","$2.24/mi., 1,000+ mi.",1999,1.025,"$2.30/mi., 1,000+ mi.",n/a,
I. Transportation,n/a,4. Other Costs Associated with Truck Transportation of Wastes,"Environmental Cost Handling Options and Solutions (ECHOS), Environmental Remediation Cost Data-Unit Price, 5th Annual Edition, published by R.S. Means, 1999.",Dump Truck Loading : $2.14/cy and $99.31/hr rental of 4 cy wheel loader;,1999,1.025,Dump Truck Loading : $2.19/cy and $101.79/hr rental of 4 cy wheel loader;,n/a,
I. Transportation,n/a,4. Other Costs Associated with Truck Transportation of Wastes,"Environmental Cost Handling Options and Solutions (ECHOS), Environmental Remediation Cost Data-Unit Price, 5th Annual Edition, published by R.S. Means, 1999.",Dump Truck Unloading: $2.14/cy;,1999,1.025,Dump Truck Unloading: $2.19/cy;,n/a,
I. Transportation,n/a,4. Other Costs Associated with Truck Transportation of Wastes,"Environmental Cost Handling Options and Solutions (ECHOS), Environmental Remediation Cost Data-Unit Price, 5th Annual Edition, published by R.S. Means, 1999.","Tank Truck Loading: $290.44 per 5,000 gallon load",1999,1.025,"Tank Truck Loading:  $297.70 per 5,000 gallon load",n/a,
I. Transportation,n/a,4. Other Costs Associated with Truck Transportation of Wastes,"Environmental Cost Handling Options and Solutions (ECHOS), Environmental Remediation Cost Data-Unit Price, 5th Annual Edition, published by R.S. Means, 1999.","Tank Truck Unloading: $290.44 per 5,000 gallon unloaded",1999,1.025,"Tank Truck Unloading: $297.70 per 5,000 gallon unloaded",n/a,
I. Transportation,n/a,4. Other Costs Associated with Truck Transportation of Wastes,"Environmental Cost Handling Options and Solutions (ECHOS), Environmental Remediation Cost Data-Unit Price, 5th Annual Edition, published by R.S. Means, 1999.",Van Trailer Loading: $2.95/drum loaded,1999,1.025,Van Trailer Loading: $3.02/drum loaded,n/a,
I. Transportation,n/a,4. Other Costs Associated with Truck Transportation of Wastes,"Environmental Cost Handling Options and Solutions (ECHOS), Environmental Remediation Cost Data-Unit Price, 5th Annual Edition, published by R.S. Means, 1999.",Van Trailer Unloading: $2.95/drum unloaded,1999,1.025,Van Trailer Unloading: $3.02/drum unloaded,n/a,
I. Transportation,n/a,4. Other Costs Associated with Truck Transportation of Wastes,"Environmental Cost Handling Options and Solutions (ECHOS), Environmental Remediation Cost Data-Unit Price, 5th Annual Edition, published by R.S. Means, 1999.",Manifest Completion/Filing: $40/stop for truck driver and generator administrator;,1999,1.025,Manifest Completion/Filing: $41/stop for truck driver and generator administrator;,n/a,
I. Transportation,n/a,4. Other Costs Associated with Truck Transportation of Wastes,"Environmental Cost Handling Options and Solutions (ECHOS), Environmental Remediation Cost Data-Unit Price, 5th Annual Edition, published by R.S. Means, 1999.",Manifest Discrepancies: $50 per manifest discrepancy;,1999,1.025,Manifest Discrepancies: $51 per manifest discrepancy;,n/a,
I. Transportation,n/a,4. Other Costs Associated with Truck Transportation of Wastes,"Environmental Cost Handling Options and Solutions (ECHOS), Environmental Remediation Cost Data-Unit Price, 5th Annual Edition, published by R.S. Means, 1999.",Demurrage (Truck Waiting Idle for loading/unloading) Costs: $62.50 to $63.33/hour $591.67/overnight $700 max./24-hour period,1999,1.025,Demurrage (Truck Waiting Idle for loading/unloading) Costs: $64.06 to $64.91/hour $606.46/overnight $718 max./24-hour period,n/a,
I. Transportation,n/a,4. Other Costs Associated with Truck Transportation of Wastes,"Environmental Cost Handling Options and Solutions (ECHOS), Environmental Remediation Cost Data-Unit Price, 5th Annual Edition, published by R.S. Means, 1999.",Charges for Additional Stops: $58.33/stop (<= 3 stops) $50/stop (> 3 stops),1999,1.025,Charges for Additional Stops: $59.79/stop (<= 3 stops) $51/stop (> 3 stops),n/a,
I. Transportation,n/a,4. Other Costs Associated with Truck Transportation of Wastes,"Environmental Cost Handling Options and Solutions (ECHOS), Environmental Remediation Cost Data-Unit Price, 5th Annual Edition, published by R.S. Means, 1999.",Truck Washout/Decontam.: $150/washout,1999,1.025,Truck Washout/Decontam.: $154/washout,n/a,
I. Transportation,n/a,5. Tarp Cover for Truck,"Technical Background Document: Compliance Cost Estimates for the Proposed Land Management Regulation of Cement Kiln Dust, April 10, 1998.",Capital Costs = 0.189 * (MT/yr) / (specific gravity of waste hauled) ,1995,1.138,Capital Costs = 0.215 * (MT/yr) / (specific gravity of waste hauled) ,n/a,
I. Transportation,n/a,5. Tarp Cover for Truck,"Technical Background Document: Compliance Cost Estimates for the Proposed Land Management Regulation of Cement Kiln Dust, April 10, 1998.",Annual O&M = 0.155 * (MT/yr) / (specific gravity of waste hauled),1995,1.138,Annual O&M = 0.176 * (MT/yr) / (specific gravity of waste hauled),n/a,
I. Transportation,n/a,6. Barge,Cost and Economic Impact Analysis of Listing Hazardous Wastes from the Petroleum Refining Industry.  (Sept. 1995),$300/metric ton,1992,1.238,$371/metric ton,n/a,
I. Transportation,n/a,7. Rail,"Environmental Cost Handling Options and Solutions (ECHOS), Environmental Remediation Cost Data-Unit Price, 5th Annual Edition, published by R.S. Means, 1999.",Rail Boxcar Transport = $3.00 per CWT,1999,1.025,Rail Boxcar Transport = $3.08 per CWT,n/a,
I. Transportation,n/a,7. Rail,"Environmental Cost Handling Options and Solutions (ECHOS), Environmental Remediation Cost Data-Unit Price, 5th Annual Edition, published by R.S. Means, 1999.",Rail Tanker Transport = $4.00 per CWT,1999,1.025,Rail Tanker Transport = $4.10 per CWT,n/a,
I. Transportation,n/a,7. Rail,"Environmental Cost Handling Options and Solutions (ECHOS), Environmental Remediation Cost Data-Unit Price, 5th Annual Edition, published by R.S. Means, 1999.",Rail Gondola Transport = $5.00 per CWT,1999,1.025,Rail Gondola Transport = $5.13 per CWT,n/a,
I. Transportation,n/a,7. Rail,"Environmental Cost Handling Options and Solutions (ECHOS), Environmental Remediation Cost Data-Unit Price, 5th Annual Edition, published by R.S. Means, 1999.",Rail Flatbed Transport = $6.00 per CWT,1999,1.025,Rail Flatbed Transport = $6.15 per CWT,n/a,
I. Transportation,n/a,7. Rail,"Environmental Cost Handling Options and Solutions (ECHOS), Environmental Remediation Cost Data-Unit Price, 5th Annual Edition, published by R.S. Means, 1999.",CWT = 100 lbs,1999,1.025,CWT = 100 lbs,n/a,
Cost Item Category,Cost Item Sub Category (where applicable),Type of Cost Item,Sources of Cost / Pricing Data,Format of Cost Data,Year of  Data,Update Factor,Updated Cost (2000$),Notes/Assumptions,
J. Miscellaneous Costs,n/a,1. Application of Water to Unpaved Roads for Dust Control,"Technical Background Document: Compliance Cost Estimates for the Proposed Land Management Regulation of Cement Kiln Dust, April 10, 1998","Annual O&M = $52,540/yr",1995,1.138,"Annual O&M = $59,791/yr",assumes 300 days/yr and 10 miles of road sprayed per day,
J. Miscellaneous Costs,n/a,2. Watering Truck with Auxiliaries,"Technical Background Document: Compliance Cost Estimates for the Proposed Land Management Regulation of Cement Kiln Dust, April 10, 1998","Capital Cost = $101,000",1995,1.138,"Capital Cost = $114,938",assumes 300 days/yr and 10 miles of road sprayed per day,
J. Miscellaneous Costs,n/a,3. Water Supply,"Technical Background Document: Compliance Cost Estimates for the Proposed Land Management Regulation of Cement Kiln Dust, April 10, 1998","$2 per 1,000 gallons = $0.02/gal",1995,1.138,"$2.30 per 1,000 gallons = $0.023/gal",n/a,
J. Miscellaneous Costs,n/a,4. Site Security,ECHOS 1999,$10.98/hr,1999,1.025,$11.25/hr,n/a,
J. Miscellaneous Costs,n/a,5. Fencing,RACER 1999,Fencing: $30.05/LF,1999,1.025,Fencing: $30.70/LF,n/a,
J. Miscellaneous Costs,n/a,5. Fencing,RACER 1999,Signage: $4.28/LF,1999,1.025,Signage: $4.39/LF,n/a,
J. Miscellaneous Costs,n/a,6. Land,"Technical Background Document: Compliance Cost Estimates for the Proposed Land Management Regulation of Cement Kiln Dust, April 10, 1998","$1,000/acre",1995,1.138,"$1,138/acre",n/a,
J. Miscellaneous Costs,n/a,6. Land,"Regulatory Impact Analysis for Application of Phase IV Land Disposal Restrictions to Newly Identified Mineral Wastes, April 15, 1997 [source of the cost is from the CKD Monofill Model Cost Documentation, 1995]","$2,500/acre",1995,1.138,"$2,845/acre",n/a,
J. Miscellaneous Costs,n/a,7. Clearing Land,RACER 1999,"$4,152/acre",1999,1.025,"$4,256/acre",n/a,
J. Miscellaneous Costs,n/a,8. Oxygen and Carbon Monoxide Monitoring System,Estimating Costs for the Economic Benefits of RCRA Noncompliance (Sept. 1997),"Capital Costs: Lower Bound - $51,286",1997,1.076,"Capital Costs: Lower Bound - $55,184",n/a,
J. Miscellaneous Costs,n/a,8. Oxygen and Carbon Monoxide Monitoring System,Estimating Costs for the Economic Benefits of RCRA Noncompliance (Sept. 1997),"Capital Costs: Upper Bound - $60,140",1997,1.076,"Capital Costs: Upper Bound - $64,711",n/a,
J. Miscellaneous Costs,n/a,8. Oxygen and Carbon Monoxide Monitoring System,Estimating Costs for the Economic Benefits of RCRA Noncompliance (Sept. 1997),"Annual O&M: Clean Systems - $29,936",1997,1.076,"Annual O&M: Clean Systems - $32,211",n/a,
J. Miscellaneous Costs,n/a,8. Oxygen and Carbon Monoxide Monitoring System,Estimating Costs for the Economic Benefits of RCRA Noncompliance (Sept. 1997),"Annual O&M: Dirty Systems - $36,488",1997,1.076,"Annual O&M: Dirty Systems - $39,261",n/a,
Cost Item Category,Cost Item Sub Category (where applicable),Type of Cost Item,Sources of Cost / Pricing Data,Format of Cost Data,Year of  Data,Update Factor,Updated Cost (2000$),Notes/Assumptions,
K. Investigation,n/a,1. RCRA Facility Investigation,RACER 1999,"small = $298,000",1999,1.025,"small = $305,450",n/a,
K. Investigation,n/a,1. RCRA Facility Investigation,RACER 1999,"moderate = $542,000",1999,1.025,"moderate = $555,550",n/a,
K. Investigation,n/a,1. RCRA Facility Investigation,RACER 1999,"large = $954,000",1999,1.025,"large = $977,850",n/a,
K. Investigation,n/a,1. RCRA Facility Investigation,RACER 1999,"very large = $1,955,000",1999,1.025,"very large = $2,003,875",n/a,
K. Investigation,n/a,2. Corrective Measures Study,RACER 1999,"limited = $94,000",1999,1.025,"limited = $96,350",n/a,
K. Investigation,n/a,2. Corrective Measures Study,RACER 1999,"moderate = $132,000",1999,1.025,"moderate = $135,300",n/a,
K. Investigation,n/a,2. Corrective Measures Study,RACER 1999,"complex = $390,000",1999,1.025,"complex = $399,750",n/a,
K. Investigation,n/a,2. Corrective Measures Study,RACER 1999,"very complex = $691,000",1999,1.025,"very complex = $708,275",n/a,
K. Investigation,n/a,3. Hydrogeologic Study,RACER 1999,"small = $134,000",1999,1.025,"small = $137,350",n/a,
K. Investigation,n/a,3. Hydrogeologic Study,RACER 1999,"moderate = $242,000",1999,1.025,"moderate = $248,050",n/a,
K. Investigation,n/a,3. Hydrogeologic Study,RACER 1999,"large = $462,000",1999,1.025,"large = $473,550",n/a,
K. Investigation,n/a,3. Hydrogeologic Study,RACER 1999,"very large = $1,032,000",1999,1.025,"very large = $1,057,800",n/a,
K. Investigation,n/a,4. Groundwater Monitoring Well Installation,RACER 1999,"Capital Cost =118 * (depth of well in feet) + 1,040",1999,1.025,"Capital Cost =121 * (depth of well in feet) + 1,066",n/a,
K. Investigation,n/a,5. Groundwater Monitoring,RACER 1999,Sampling only (no analytical): Cost = 1.4D + 260,1999,1.025,Sampling only (no analytical): Cost = 1.4D + 267,"D = depth of sample in feet
costs are per sample",
K. Investigation,n/a,5. Groundwater Monitoring,RACER 1999,Sampling and analytical for VOCs: Cost = 1.2D + 838,1999,1.025,Sampling and analytical for VOCs: Cost = 1.2D + 859,"D = depth of sample in feet
costs are per sample",
K. Investigation,n/a,5. Groundwater Monitoring,RACER 1999,"Sampling and analytical for SVOCs: Cost = 1.3D +1,140",1999,1.025,"Sampling and analytical for SVOCs: Cost = 1.3D +1,169","D = depth of sample in feet
costs are per sample",
K. Investigation,n/a,5. Groundwater Monitoring,RACER 1999,"Sampling and analytical for Fuels: Cost = 1.3D + 1,180",1999,1.025,"Sampling and analytical for Fuels: Cost = 1.3D + 1,210","D = depth of sample in feet
costs are per sample",
K. Investigation,n/a,5. Groundwater Monitoring,RACER 1999,Sampling and analytical for Metals: Cost = 1.2D + 973,1999,1.025,Sampling and analytical for Metals: Cost = 1.2D + 997,"D = depth of sample in feet
costs are per sample",
K. Investigation,n/a,6. Surface Water Monitoring,RACER 1999,Sampling only (no analytical): Cost = $100/per sample,1999,1.025,Sampling only (no analytical): Cost = $103/per sample,n/a,
K. Investigation,n/a,6. Surface Water Monitoring,RACER 1999,Sampling and analytical for VOCs: Cost = $671/per sample,1999,1.025,Sampling and analytical for VOCs: Cost = $688/per sample,n/a,
K. Investigation,n/a,6. Surface Water Monitoring,RACER 1999,"Sampling and analytical for SVOCs: Cost = $1,022/per sample",1999,1.025,"Sampling and analytical for SVOCs: Cost = $1,048/per sample",n/a,
K. Investigation,n/a,6. Surface Water Monitoring,RACER 1999,"Sampling and analytical for Fuels: Cost = $1,022/per sample",1999,1.025,"Sampling and analytical for Fuels: Cost = $1,048/per sample",n/a,
K. Investigation,n/a,6. Surface Water Monitoring,RACER 1999,Sampling and analytical for Metals: Cost = $815/per sample,1999,1.025,Sampling and analytical for Metals: Cost = $835/per sample,n/a,
Cost Item Category,Cost Item Sub Category (where applicable),Type of Cost Item,Sources of Cost / Pricing Data,Format of Cost Data,Year of  Data,Update Factor,Updated Cost (2000$),Notes/Assumptions,
L. Corrective Action,1. Cap,1.1 Soil and Vegetative Cap,RACER 1999,"Capital = 119,843*(area in acres)+17,196",1999,1.025,"Capital = 122,839*(area in acres)+17,626",n/a,
L. Corrective Action,1. Cap,1.1 Soil and Vegetative Cap,RACER 1999,"General O&M= 1,492*(area in acres) + 1,167",1999,1.025,"General O&M= 1,529*(area in acres) + 1,196",n/a,
L. Corrective Action,1. Cap,1.1 Soil and Vegetative Cap,RACER 1999,"Miscellaneous O&M = 2,615*(area in acres) + 390",1999,1.025,"Miscellaneous O&M = 2,680*(area in acres) + 400",n/a,
L. Corrective Action,1. Cap,1.2 Composite Cap for Non-Hazardous Waste (Subtitle D),RACER 1999,"Capital = 314,707*(area in acres)+11,621",1999,1.025,"Capital = 322,575*(area in acres)+11,912",n/a,
L. Corrective Action,1. Cap,1.2 Composite Cap for Non-Hazardous Waste (Subtitle D),RACER 1999,"General O&M = 1,089*(area in acres) + 2360",1999,1.025,"General O&M = 1,116*(area in acres) + 2,419",n/a,
L. Corrective Action,1. Cap,1.2 Composite Cap for Non-Hazardous Waste (Subtitle D),RACER 1999,"Miscellaneous O&M =  6,583*(area in acres) + 764",1999,1.025,"Miscellaneous O&M = 6,748*(area in acres) + 783",n/a,
L. Corrective Action,1. Cap,1.3 Composite Cap for Hazardous Waste (Subtitle C),RACER 1999,"Capital = 373,251*(area in acres)+10,844",1999,1.025,"Capital = 382,582*(area in acres)+11,115",n/a,
L. Corrective Action,1. Cap,1.3 Composite Cap for Hazardous Waste (Subtitle C),RACER 1999,"General O&M = 1,498*(area in acres) + 844",1999,1.025,"General O&M = 1,535*(area in acres) + 865",n/a,
L. Corrective Action,1. Cap,1.3 Composite Cap for Hazardous Waste (Subtitle C),RACER 1999,"Miscellaneous O&M = 7,793*(area in acres) + 870",1999,1.025,"Miscellaneous O&M = 7,988*(area in acres) + 892",n/a,
L. Corrective Action,2. Soil/Waste Removal,2.1 Excavation,"Memo: Costs of the Phase IV LDRs on MGP Wastes, January 1998",$15/ton,1998*,1.05,$16/ton,"* Presumed year of cost data.  The source of cost data did not directly indicate the year the cost data is based upon.  In these cases, a year of data is assumed from the date of the source document or references within the source document.",
L. Corrective Action,2. Soil/Waste Removal,2.2 Backfill,RACER 1999.,$9.71/cy,1999,1.025,$9.95/cy,n/a,
L. Corrective Action,3. Soil/Waste Treatment,3.1 In-Situ Stabilization,"Memorandum to Paul Borst, EPA/OSW from Kevin Guiney, ICF Incorporated (Jan. 28, 1998), regarding Costs of the Phase IV Land Disposal Restrictions on Manufactured Gas Plant Wastes.  The reference for the in-situ stabilization cost presented in this memorandum is the EPA/OSW document entitled Application of the Phase IV Land Disposal Restrictions to Contaminated Media: Costs, Cost Savings, and Economic Impacts (Jan. 28, 1998)",$54/ton,1997,1.076,$58/ton,n/a,
L. Corrective Action,3. Soil/Waste Treatment,3.2. Soil Vapor Extraction,RACER 1999,"See Appendix for cost lookup table as a function of area, depth and soil type.",1999,1.025,"See Appendix for cost lookup table as a function of area, depth and soil type.",n/a,
L. Corrective Action,3. Soil/Waste Treatment,3.3. In-Situ Bioremediation,"Memorandum to Paul Borst, EPA/OSW from Kevin Guiney, ICF Incorporated (Jan. 28, 1998), regarding Costs of the Phase IV Land Disposal Restrictions on Manufactured Gas Plant Wastes. ",$67/ton,1998*,1.05,$70/ton,"* Presumed year of cost data.  The source of cost data did not directly indicate the year the cost data is based upon.  In these cases, a year of data is assumed from the date of the source document or references within the source document.",
L. Corrective Action,3. Soil/Waste Treatment,3.4 Ex-Situ Bioremediation,"Memorandum to Paul Borst, EPA/OSW from Kevin Guiney, ICF Incorporated (Jan. 28, 1998), regarding Costs of the Phase IV Land Disposal Restrictions on Manufactured Gas Plant Wastes.  The reference for the ex-situ bioremediation cost presented in this memorandum is  EPRI�s Guide to Site Restoration Strategies -- Volume IV: Site Restoration, Revision 1, October 1995.",Landfarming = $41/ton,1995*,1.138,Landfarming = $47/ton,"* Presumed year of cost data.  The source of cost data did not directly indicate the year the cost data is based upon.  In these cases, a year of data is assumed from the date of the source document or references within the source document.",
L. Corrective Action,3. Soil/Waste Treatment,3.4 Ex-Situ Bioremediation,"Memorandum to Paul Borst, EPA/OSW from Kevin Guiney, ICF Incorporated (Jan. 28, 1998), regarding Costs of the Phase IV Land Disposal Restrictions on Manufactured Gas Plant Wastes.  The reference for the ex-situ bioremediation cost presented in this memorandum is  EPRI�s Guide to Site Restoration Strategies -- Volume IV: Site Restoration, Revision 1, October 1995.",Solid Phase Bioremediation = $76/ton,1995*,1.138,Solid Phase Bioremediation = $86/ton,"* Presumed year of cost data.  The source of cost data did not directly indicate the year the cost data is based upon.  In these cases, a year of data is assumed from the date of the source document or references within the source document.",
L. Corrective Action,3. Soil/Waste Treatment,3.4 Ex-Situ Bioremediation,"Memorandum to Paul Borst, EPA/OSW from Kevin Guiney, ICF Incorporated (Jan. 28, 1998), regarding Costs of the Phase IV Land Disposal Restrictions on Manufactured Gas Plant Wastes.  The reference for the ex-situ bioremediation cost presented in this memorandum is  EPRI�s Guide to Site Restoration Strategies -- Volume IV: Site Restoration, Revision 1, October 1995.",Slurry Phase Bioremediation = $70-$190/ton,1995*,1.138,Slurry Phase Bioremediation = $80-$216/ton,"* Presumed year of cost data.  The source of cost data did not directly indicate the year the cost data is based upon.  In these cases, a year of data is assumed from the date of the source document or references within the source document.",
L. Corrective Action,3. Soil/Waste Treatment,3.5 Soil Washing,Racer 1999,"Cost (25 tons/hour) = 78 (LCY) + 541,296",1999,1.025,"Cost (25 tons/hour) = 80 (LCY) + 554,828","LCY = Loose cubic yards
Note: Costs do not include treatment or disposal of remaining fines. ",
L. Corrective Action,3. Soil/Waste Treatment,3.5 Soil Washing,Racer 1999,"Cost (50 tons/hour) = 55 (LCY) + 598,863",1999,1.025,"Cost (50 tons/hour) = 56 (LCY) + 613,835","LCY = Loose cubic yards
Note: Costs do not include treatment or disposal of remaining fines. ",
L. Corrective Action,3. Soil/Waste Treatment,3.5 Soil Washing,Racer 1999,"Cost (100 tons/hour) = 41 (LCY) + 693,330",1999,1.025,"Cost (100 tons/hour) = 42 (LCY) + 710,663","LCY = Loose cubic yards
Note: Costs do not include treatment or disposal of remaining fines. ",
L. Corrective Action,4. Groundwater Removal/Containment,4.1 Groundwater Extraction Wells,Racer 1999,"Depth to Groundwater 20 feet: Capital Cost (per well) = 0.10 Q2 + 23Q + 11,970",1999,1.025,"Depth to Groundwater 20 feet: Capital Cost (per well) = 0.10 Q2 + 24Q + 12,269",Q = gallons per minute,
L. Corrective Action,4. Groundwater Removal/Containment,4.1 Groundwater Extraction Wells,Racer 1999,"Depth to Groundwater 20 feet: O&M (per well) = 12Q + 3,815",1999,1.025,"Depth to Groundwater 20 feet: O&M (per well) = 12Q + 3,910",Q = gallons per minute,
L. Corrective Action,4. Groundwater Removal/Containment,4.1 Groundwater Extraction Wells,Racer 1999,"Depth to Groundwater 100 feet: Capital Cost (per well) = 81Q + 21,063",1999,1.025,"Depth to Groundwater 100 feet: Capital Cost (per well) = 83Q + 21,590",Q = gallons per minute,
L. Corrective Action,4. Groundwater Removal/Containment,4.1 Groundwater Extraction Wells,Racer 1999,"Depth to Groundwater 100 feet: O&M (per well) = 30Q + 3,998",1999,1.025,"Depth to Groundwater 100 feet: O&M (per well) = 31Q + 4,098",Q = gallons per minute,
L. Corrective Action,4. Groundwater Removal/Containment,4.2 French Drain,Racer 1999,"Capital Cost  = 111 L + 56,947",1999,1.025,"Capital Cost  = 114 L + 58,371",L = Length of Drain in Feet,
L. Corrective Action,4. Groundwater Removal/Containment,4.2 French Drain,Racer 1999,"O&M Cost  = 6 L + 2,671",1999,1.025,"O&M Cost  = 6 L + 2,738",L = Length of Drain in Feet,
L. Corrective Action,4. Groundwater Removal/Containment,4.3 Slurry Wall,Racer 1999,"Capital for 20 feet deep wall = 147 L + 11,451",1999,1.025,"Capital for 20 feet deep wall = 151 L + 11,737",L = Length of Wall in Feet,
L. Corrective Action,4. Groundwater Removal/Containment,4.3 Slurry Wall,Racer 1999,"Capital for 50 feet deep wall = 316 L + 30,493",1999,1.025,"Capital for 50 feet deep wall = 324 L + 31,255",L = Length of Wall in Feet,
L. Corrective Action,4. Groundwater Removal/Containment,4.3 Slurry Wall,Racer 1999,"Capital for 80 feet deep wall = 587 L + 30,011",1999,1.025,"Capital for 80 feet deep wall = 602 L + 30,761",L = Length of Wall in Feet,
L. Corrective Action,4. Groundwater Removal/Containment,4.3 Slurry Wall,Racer 1999,"O&M = 1,500 (L/100)",1999,1.025,"O&M = 1,538 (L/100)",L = Length of Wall in Feet,
Cost Item Category,Cost Item Sub Category (where applicable),Type of Cost Item,Sources of Cost / Pricing Data,Format of Cost Data,Year of  Data,Update Factor,Updated Cost (2000$),Notes/Assumptions,
M. Labor,n/a,1. Unskilled Labor,"RACER 1999 and the U.S. Department of Labor Statistics �National Compensation Survey: Occupational Wages in the United States, 1997.""",Racer no multiplier: $21.50/hr,1999,1.025,Racer no multiplier: $22.04/hr,n/a,
M. Labor,n/a,1. Unskilled Labor,"RACER 1999 and the U.S. Department of Labor Statistics �National Compensation Survey: Occupational Wages in the United States, 1997.""",Racer with multiplier: $37.98/hr,1999,1.025,Racer with multiplier: $38.93/hr,n/a,
M. Labor,n/a,1. Unskilled Labor,"RACER 1999 and the U.S. Department of Labor Statistics �National Compensation Survey: Occupational Wages in the United States, 1997.""",Bureau no multiplier: $11.28/hr,1999,1.025,Bureau no multiplier: $11.56/hr,n/a,
M. Labor,n/a,1. Unskilled Labor,"RACER 1999 and the U.S. Department of Labor Statistics �National Compensation Survey: Occupational Wages in the United States, 1997.""",Bureau with multiplier: $19.97/hr,1999,1.025,Bureau with multiplier: $20.47/hr,n/a,
M. Labor,n/a,2. Operator,"RACER 1999 and the U.S. Department of Labor Statistics �National Compensation Survey: Occupational Wages in the United States, 1997.""",Racer no multiplier: $21.60/hr,1999,1.025,Racer no multiplier: $22.14/hr,n/a,
M. Labor,n/a,2. Operator,"RACER 1999 and the U.S. Department of Labor Statistics �National Compensation Survey: Occupational Wages in the United States, 1997.""",Racer with multiplier: $38.15/hr,1999,1.025,Racer with multiplier: $39.10/hr,n/a,
M. Labor,n/a,2. Operator,"RACER 1999 and the U.S. Department of Labor Statistics �National Compensation Survey: Occupational Wages in the United States, 1997.""",Bureau no multiplier: $15.70/hr,1999,1.025,Bureau no multiplier: $16.09/hr,n/a,
M. Labor,n/a,2. Operator,"RACER 1999 and the U.S. Department of Labor Statistics �National Compensation Survey: Occupational Wages in the United States, 1997.""",Bureau with multiplier: $27.78/hr,1999,1.025,Bureau with multiplier: $28.47/hr,n/a,
M. Labor,n/a,3. Technician,"RACER 1999 and the U.S. Department of Labor Statistics �National Compensation Survey: Occupational Wages in the United States, 1997.""",Racer no multiplier: $14.43/hr,1999,1.025,Racer no multiplier: $14.79/hr,n/a,
M. Labor,n/a,3. Technician,"RACER 1999 and the U.S. Department of Labor Statistics �National Compensation Survey: Occupational Wages in the United States, 1997.""",Racer with multiplier: $46.85/hr,1999,1.025,Racer with multiplier: $48.02/hr,n/a,
M. Labor,n/a,3. Technician,"RACER 1999 and the U.S. Department of Labor Statistics �National Compensation Survey: Occupational Wages in the United States, 1997.""",Bureau no multiplier: $19.03/hr,1999,1.025,Bureau no multiplier: $19.51/hr,n/a,
M. Labor,n/a,3. Technician,"RACER 1999 and the U.S. Department of Labor Statistics �National Compensation Survey: Occupational Wages in the United States, 1997.""",Bureau with multiplier: $60.89/hr,1999,1.025,Bureau with multiplier: $62.41/hr,n/a,
M. Labor,n/a,"4. Professional (e.g., Engineer, Hydrogeologist)","RACER 1999 and the U.S. Department of Labor Statistics �National Compensation Survey: Occupational Wages in the United States, 1997.""",Racer no multiplier: $32.35/hr,1999,1.025,Racer no multiplier: $33.16/hr,n/a,
M. Labor,n/a,"4. Professional (e.g., Engineer, Hydrogeologist)","RACER 1999 and the U.S. Department of Labor Statistics �National Compensation Survey: Occupational Wages in the United States, 1997.""",Racer with multiplier: $105.03/hr,1999,1.025,Racer with multiplier: $107.66/hr,n/a,
M. Labor,n/a,"4. Professional (e.g., Engineer, Hydrogeologist)","RACER 1999 and the U.S. Department of Labor Statistics �National Compensation Survey: Occupational Wages in the United States, 1997.""",Bureau no multiplier: $27.52/hr,1999,1.025,Bureau no multiplier: $28.21/hr,n/a,
M. Labor,n/a,"4. Professional (e.g., Engineer, Hydrogeologist)","RACER 1999 and the U.S. Department of Labor Statistics �National Compensation Survey: Occupational Wages in the United States, 1997.""",Bureau with multiplier: $88.05/hr,1999,1.025,Bureau with multiplier: $90.25/hr,n/a,
M. Labor,n/a,5. Manager,"RACER 1999 and the U.S. Department of Labor Statistics �National Compensation Survey: Occupational Wages in the United States, 1997.""",Racer no multiplier: $24.38/hr,1999,1.025,Racer no multiplier: $24.99/hr,n/a,
M. Labor,n/a,5. Manager,"RACER 1999 and the U.S. Department of Labor Statistics �National Compensation Survey: Occupational Wages in the United States, 1997.""",Racer with multiplier: $79.18/hr,1999,1.025,Racer with multiplier: $81.16/hr,n/a,
M. Labor,n/a,5. Manager,"RACER 1999 and the U.S. Department of Labor Statistics �National Compensation Survey: Occupational Wages in the United States, 1997.""",Bureau no multiplier: $34.67/hr,1999,1.025,Bureau no multiplier: $35.54/hr,n/a,
M. Labor,n/a,5. Manager,"RACER 1999 and the U.S. Department of Labor Statistics �National Compensation Survey: Occupational Wages in the United States, 1997.""",Bureau with multiplier: $110.95/hr,1999,1.025,Bureau with multiplier: $113.72/hr,n/a,
M. Labor,n/a,6. Clerical,"RACER 1999 and the U.S. Department of Labor Statistics �National Compensation Survey: Occupational Wages in the United States, 1997.""",Racer no multiplier: $12.45/hr,1999,1.025,Racer no multiplier: $12.76/hr,n/a,
M. Labor,n/a,6. Clerical,"RACER 1999 and the U.S. Department of Labor Statistics �National Compensation Survey: Occupational Wages in the United States, 1997.""",Racer with multiplier: $40.40/hr,1999,1.025,Racer with multiplier: $41.41/hr,n/a,
M. Labor,n/a,6. Clerical,"RACER 1999 and the U.S. Department of Labor Statistics �National Compensation Survey: Occupational Wages in the United States, 1997.""",Bureau no multiplier: $13.57/hr,1999,1.025,Bureau no multiplier: $13.91/hr,n/a,
M. Labor,n/a,6. Clerical,"RACER 1999 and the U.S. Department of Labor Statistics �National Compensation Survey: Occupational Wages in the United States, 1997.""",Bureau with multiplier: $43.44/hr,1999,1.025,Bureau with multiplier: $44.53/hr,n/a,
M. Labor,n/a,7. Attorney,"The U.S. Department of Labor Statistics �National Compensation Survey: Occupational Wages in the United States, 1997"".  ",Bureau no multiplier: $36.41/hr,1999,1.025,Bureau no multiplier: $37.32/hr,n/a,
M. Labor,n/a,7. Attorney,"The U.S. Department of Labor Statistics �National Compensation Survey: Occupational Wages in the United States, 1997"".  ",Bureau with multiplier: $116.53/hr,1999,1.025,Bureau with multiplier: $119.44/hr,n/a,
Cost Item Category,Cost Item Sub Category (where applicable),Type of Cost Item,Sources of Cost / Pricing Data,Format of Cost Data,Year of  Data,Update Factor,Updated Cost (2000$),Notes/Assumptions,
N. Analytical,n/a,1. Sampling Cost,RACER 1999 and DPRA Environmental estimate.,$41/sample,1999,1.025,$42/sample,n/a,
N. Analytical,n/a,2. Priority 17 Metals,Nine sources including RACER 1999 and vendor quotes (see appendix).,$170.63/sample (excluding markups),2000,1.000,$170.63/sample (excluding markups),n/a,
N. Analytical,n/a,3. RCRA Metals,Nine sources including RACER 1999 and vendor quotes (see appendix).,$89.00/sample (excluding markups),2000,1.000,$89.00/sample (excluding markups),n/a,
N. Analytical,n/a,4. EP Toxicity Metals,Nine sources including RACER 1999 and vendor quotes (see appendix).,$194.00/sample (excluding markups),2000,1.000,$194.00/sample (excluding markups),n/a,
N. Analytical,n/a,5. Pesticides/PCBs,Nine sources including RACER 1999 and vendor quotes (see appendix).,$175.90/sample (excluding markups),2000,1.000,$175.90/sample (excluding markups),n/a,
N. Analytical,n/a,6. Volatile Organics,Nine sources including RACER 1999 and vendor quotes (see appendix).,$97.50/sample (excluding markups),2000,1.000,$97.50/sample (excluding markups),n/a,
N. Analytical,n/a,7. BTEX/MTBE,Nine sources including RACER 1999 and vendor quotes (see appendix).,$59.58/sample (excluding markups),2000,1.000,$59.58/sample (excluding markups),n/a,
N. Analytical,n/a,8. BTEX/MTBE (GC/MS),Nine sources including RACER 1999 and vendor quotes (see appendix).,$64.00/sample (excluding markups),2000,1.000,$64.00/sample (excluding markups),n/a,
N. Analytical,n/a,9. Chlorinated Hydrocarbons,Nine sources including RACER 1999 and vendor quotes (see appendix).,$198.33/sample (excluding markups),2000,1.000,$198.33/sample (excluding markups),n/a,
N. Analytical,n/a,10. Non-Halogenated Volatile Organics,Nine sources including RACER 1999 and vendor quotes (see appendix).,$110.00/sample (excluding markups),2000,1.000,$110.00/sample (excluding markups),n/a,
N. Analytical,n/a,11. PAHs,Nine sources including RACER 1999 and vendor quotes (see appendix).,$105.30/sample (excluding markups),2000,1.000,$105.30/sample (excluding markups),n/a,
N. Analytical,n/a,12. Base Neutral & Acid Extractable Organics,Nine sources including RACER 1999 and vendor quotes (see appendix).,$317.10/sample (excluding markups),2000,1.000,$317.10/sample (excluding markups),n/a,
N. Analytical,n/a,13. TCLP Extraction Only,Nine sources including RACER 1999 and vendor quotes (see appendix).,$68.96/sample (excluding markups),2000,1.000,$68.96/sample (excluding markups),n/a,
N. Analytical,n/a,14. TCLP Full,Nine sources including RACER 1999 and vendor quotes (see appendix).,$791.26/sample (excluding markups),2000,1.000,$791.26/sample (excluding markups),n/a,
N. Analytical,n/a,15. TCLP Full (less pesticides/herbicides),Nine sources including RACER 1999 and vendor quotes (see appendix).,$555.98/sample (excluding markups),2000,1.000,$555.98/sample (excluding markups),n/a,
N. Analytical,n/a,16. Permeability Test,Nine sources including RACER 1999 and vendor quotes (see appendix).,$145.69/sample (excluding markups),2000,1.000,$145.69/sample (excluding markups),n/a,
N. Analytical,n/a,17. Cyanide Total,Nine sources including RACER 1999 and vendor quotes (see appendix).,$32.17/sample (excluding markups),2000,1.000,$32.17/sample (excluding markups),n/a,
